Workbook

Sheet Home
B2: DEEPAK EDUWORLD PVT LTD
B3: Attendance Register For Year 2010

Sheet jan
C2: Deepak EduWorld Pvt Ltd | AL2: Salary Calculatrion
B6: Attandance Sheet For Month | F6: =MID(CELL("filename",B2),FIND("]",CELL("filename",B2))+1,255) -> jan | K6: =DATEVALUE("1"&F6) -> 2019-01-01 | P6: To | Q6: =EOMONTH(K6,0) -> 2019-01-31
B8: Emp Id | C8: Name | D8: Date Of Joining | E8: Post | F8: =TEXT(F9,"ddd") -> Tue | G8: =TEXT(G9,"ddd") -> Wed | H8: =TEXT(H9,"ddd") -> Thu | I8: Fri | J8: Sat | K8: Sun | L8: Mon | M8: Tue | N8: Wed | O8: Thu | P8: Fri | Q8: Sat | R8: Sun | S8: Mon | T8: Tue | U8: Wed | V8: Thu | W8: Fri | X8: Sat | Y8: Sun | Z8: Mon | AA8: Tue | AB8: Wed | AC8: Thu | AD8: Fri | AE8: Sat | AF8: Sun | AG8: Mon | AH8: Tue | AI8: Wed | AJ8: Thu | AL8: Presence | AM8: Absence | AN8: Leave Taken | AO8: Allowed Leave | AP8: Leave Charges | AQ8: Total Days of month | AR8: Total Payable Days | AS8: Basic Salary | AT8: PF 5% | AU8: Per Day Amount | AV8: HRA | AW8: Total Amount | AX8: In Hand Salary
F9: =K6 -> 2019-01-01 | G9: =IF(F9<$Q$6,F9+1,"") -> 2019-01-02 | H9: 2019-01-03 | I9: 2019-01-04 | J9: 2019-01-05 | K9: 2019-01-06 | L9: 2019-01-07 | M9: 2019-01-08 | N9: 2019-01-09 | O9: 2019-01-10 | P9: 2019-01-11 | Q9: 2019-01-12 | R9: 2019-01-13 | S9: 2019-01-14 | T9: 2019-01-15 | U9: 2019-01-16 | V9: 2019-01-17 | W9: 2019-01-18 | X9: 2019-01-19 | Y9: 2019-01-20 | Z9: 2019-01-21 | AA9: 2019-01-22 | AB9: 2019-01-23 | AC9: 2019-01-24 | AD9: 2019-01-25 | AE9: 2019-01-26 | AF9: 2019-01-27 | AG9: 2019-01-28 | AH9: 2019-01-29 | AI9: 2019-01-30 | AJ9: 2019-01-31
B10: P001 | C10: Name 1 | D10: 2019-01-01 | E10: Manager | F10: p | G10: p | H10: p | I10: p | J10: p | L10: p | M10: p | N10: p | O10: p | P10: p | Q10: p | S10: p | T10: a | U10: a | V10: a | W10: p | X10: p | Z10: p | AA10: p | AB10: p | AC10: p | AD10: p | AE10: p | AG10: p | AH10: p | AI10: p | AJ10: p | AL10: =COUNTIF(jan!$F10:$AJ10,"p") -> 24 | AM10: =COUNTIF(jan!$F10:$AJ10,"a") -> 3 | AN10: =COUNTIF(jan!$F10:$AJ10,"l") -> 0 | AO10: 2 | AP10: =IF(AN10>AO10,AN10-AO10,0) -> 0 | AQ10: =DAY($Q$6) -> 31 | AR10: =IF(AL10=0,0,COUNTIF($F$8:$AJ$8,"sun")+AL10) -> 28 | AS10: 15000 | AT10: =AS10*5% -> 750 | AU10: =AS10/AQ10 -> 484 | AV10: =IF(AS10>20000,3000,2000) -> 2000 | AW10: =AU10*AR10 -> 13548.3871 | AX10: =IF(AL10=0,0,AW10+AV10-AT10) -> 14798
B11: P002 | C11: Name 2 | D11: 2019-01-02 | E11: Officer | F11: p | G11: p | H11: p | I11: p | J11: p | L11: p | M11: p | N11: p | O11: p | P11: p | Q11: p | S11: p | T11: p | U11: p | V11: p | W11: p | X11: p | Z11: p | AA11: p | AB11: p | AC11: p | AD11: p | AE11: p | AG11: p | AH11: p | AI11: p | AJ11: p | AL11: =COUNTIF(jan!$F11:$AJ11,"p") -> 27 | AM11: =COUNTIF(jan!$F11:$AJ11,"a") -> 0 | AN11: =COUNTIF(jan!$F11:$AJ11,"l") -> 0 | AO11: 2 | AP11: =IF(AN11>AO11,AN11-AO11,0) -> 0 | AQ11: 31 | AR11: =IF(AL11=0,0,COUNTIF($F$8:$AJ$8,"sun")+AL11) -> 31 | AS11: 16000 | AT11: =AS11*5% -> 800 | AU11: =AS11/AQ11 -> 516 | AV11: =IF(AS11>20000,3000,2000) -> 2000 | AW11: =AU11*AR11 -> 16000 | AX11: =IF(AL11=0,0,AW11+AV11-AT11) -> 17200
B12: P003 | C12: Name 3 | D12: 2019-01-03 | E12: Clark | F12: p | G12: p | H12: p | I12: p | J12: p | L12: p | M12: p | N12: p | O12: p | P12: p | Q12: p | S12: p | T12: p | U12: p | V12: p | W12: p | X12: p | Z12: p | AA12: p | AB12: p | AC12: p | AD12: p | AE12: p | AG12: p | AH12: p | AI12: p | AJ12: p | AL12: =COUNTIF(jan!$F12:$AJ12,"p") -> 27 | AM12: =COUNTIF(jan!$F12:$AJ12,"a") -> 0 | AN12: =COUNTIF(jan!$F12:$AJ12,"l") -> 0 | AO12: 2 | AP12: 0 | AQ12: 31 | AR12: 31 | AS12: 17000 | AT12: 850 | AU12: 548 | AV12: 2000 | AW12: 17000 | AX12: 18150
B13: P004 | C13: Name 4 | D13: 2019-01-04 | E13: Manager | F13: p | G13: p | H13: p | I13: p | J13: p | L13: p | M13: p | N13: p | O13: p | P13: p | Q13: p | S13: p | T13: p | U13: p | V13: p | W13: p | X13: p | Z13: p | AA13: p | AB13: p | AC13: p | AD13: p | AE13: p | AG13: p | AH13: p | AI13: p | AJ13: p | AL13: =COUNTIF(jan!$F13:$AJ13,"p") -> 27 | AM13: =COUNTIF(jan!$F13:$AJ13,"a") -> 0 | AN13: =COUNTIF(jan!$F13:$AJ13,"l") -> 0 | AO13: 2 | AP13: 0 | AQ13: 31 | AR13: 31 | AS13: 18000 | AT13: 900 | AU13: 581 | AV13: 2000 | AW13: 18000 | AX13: 19100
B14: P005 | C14: Name 5 | D14: 2019-01-05 | E14: Officer | F14: p | G14: p | H14: p | I14: p | J14: p | L14: p | M14: p | N14: p | O14: p | P14: p | Q14: p | S14: p | T14: p | U14: p | V14: p | W14: p | X14: p | Z14: p | AA14: p | AB14: p | AC14: p | AD14: p | AE14: p | AG14: p | AH14: p | AI14: p | AJ14: p | AL14: =COUNTIF(jan!$F14:$AJ14,"p") -> 27 | AM14: =COUNTIF(jan!$F14:$AJ14,"a") -> 0 | AN14: =COUNTIF(jan!$F14:$AJ14,"l") -> 0 | AO14: 2 | AP14: 0 | AQ14: 31 | AR14: 31 | AS14: 19000 | AT14: 950 | AU14: 613 | AV14: 2000 | AW14: 19000 | AX14: 20050
B15: P006 | C15: Name 6 | D15: 2019-01-06 | E15: Clark | F15: p | G15: p | H15: p | I15: p | J15: p | L15: p | M15: p | N15: p | O15: p | P15: p | Q15: p | S15: p | T15: p | U15: p | V15: p | W15: p | X15: p | Z15: p | AA15: p | AB15: p | AC15: p | AD15: p | AE15: p | AG15: p | AH15: p | AI15: p | AJ15: p | AL15: =COUNTIF(jan!$F15:$AJ15,"p") -> 27 | AM15: =COUNTIF(jan!$F15:$AJ15,"a") -> 0 | AN15: =COUNTIF(jan!$F15:$AJ15,"l") -> 0 | AO15: 2 | AP15: 0 | AQ15: 31 | AR15: 31 | AS15: 20000 | AT15: 1000 | AU15: 645 | AV15: 2000 | AW15: 20000 | AX15: 21000
B16: P007 | C16: Name 7 | D16: 2019-01-07 | E16: Manager | F16: p | G16: p | H16: p | I16: p | J16: p | L16: p | M16: p | N16: p | O16: p | P16: p | Q16: p | S16: p | T16: p | U16: p | V16: p | W16: p | X16: p | Z16: p | AA16: p | AB16: p | AC16: p | AD16: p | AE16: p | AG16: p | AH16: p | AI16: p | AJ16: p | AL16: =COUNTIF(jan!$F16:$AJ16,"p") -> 27 | AM16: =COUNTIF(jan!$F16:$AJ16,"a") -> 0 | AN16: =COUNTIF(jan!$F16:$AJ16,"l") -> 0 | AO16: 2 | AP16: 0 | AQ16: 31 | AR16: 31 | AS16: 21000 | AT16: 1050 | AU16: 677 | AV16: 3000 | AW16: 21000 | AX16: 22950
B17: P008 | C17: Name 8 | D17: 2019-01-08 | E17: Officer | F17: p | G17: p | H17: p | I17: p | J17: p | L17: p | M17: p | N17: p | O17: p | P17: p | Q17: p | S17: p | T17: p | U17: p | V17: p | W17: p | X17: p | Z17: p | AA17: p | AB17: p | AC17: p | AD17: p | AE17: p | AG17: p | AH17: p | AI17: p | AJ17: p | AL17: =COUNTIF(jan!$F17:$AJ17,"p") -> 27 | AM17: =COUNTIF(jan!$F17:$AJ17,"a") -> 0 | AN17: =COUNTIF(jan!$F17:$AJ17,"l") -> 0 | AO17: 2 | AP17: 0 | AQ17: 31 | AR17: 31 | AS17: 22000 | AT17: 1100 | AU17: 710 | AV17: 3000 | AW17: 22000 | AX17: 23900
B18: P009 | C18: Name 9 | D18: 2019-01-09 | E18: Clark | F18: p | G18: p | H18: p | I18: p | J18: p | L18: p | M18: p | N18: p | O18: p | P18: p | Q18: p | S18: p | T18: p | U18: p | V18: p | W18: p | X18: p | Z18: p | AA18: p | AB18: p | AC18: p | AD18: p | AE18: p | AG18: p | AH18: p | AI18: p | AJ18: p | AL18: =COUNTIF(jan!$F18:$AJ18,"p") -> 27 | AM18: =COUNTIF(jan!$F18:$AJ18,"a") -> 0 | AN18: =COUNTIF(jan!$F18:$AJ18,"l") -> 0 | AO18: 2 | AP18: 0 | AQ18: 31 | AR18: 31 | AS18: 23000 | AT18: 1150 | AU18: 742 | AV18: 3000 | AW18: 23000 | AX18: 24850
B19: P010 | C19: Name 10 | D19: 2019-01-10 | E19: Manager | F19: p | G19: p | H19: p | I19: p | J19: p | L19: p | M19: p | N19: p | O19: p | P19: p | Q19: p | S19: p | T19: p | U19: p | V19: p | W19: p | X19: p | Z19: p | AA19: p | AB19: p | AC19: p | AD19: p | AE19: p | AG19: p | AH19: p | AI19: p | AJ19: p | AL19: =COUNTIF(jan!$F19:$AJ19,"p") -> 27 | AM19: =COUNTIF(jan!$F19:$AJ19,"a") -> 0 | AN19: =COUNTIF(jan!$F19:$AJ19,"l") -> 0 | AO19: 2 | AP19: 0 | AQ19: 31 | AR19: 31 | AS19: 24000 | AT19: 1200 | AU19: 774 | AV19: 3000 | AW19: 24000 | AX19: 25800
B20: P011 | C20: Name 11 | D20: 2019-01-11 | E20: Officer | F20: p | G20: p | H20: p | I20: p | J20: p | L20: p | M20: p | N20: p | O20: p | P20: p | Q20: p | S20: p | T20: p | U20: p | V20: p | W20: p | X20: p | Z20: p | AA20: p | AB20: p | AC20: p | AD20: p | AE20: p | AG20: p | AH20: p | AI20: p | AJ20: p | AL20: =COUNTIF(jan!$F20:$AJ20,"p") -> 27 | AM20: =COUNTIF(jan!$F20:$AJ20,"a") -> 0 | AN20: =COUNTIF(jan!$F20:$AJ20,"l") -> 0 | AO20: 2 | AP20: 0 | AQ20: 31 | AR20: 31 | AS20: 25000 | AT20: 1250 | AU20: 806 | AV20: 3000 | AW20: 25000 | AX20: 26750
B21: P012 | C21: Name 12 | D21: 2019-01-12 | E21: Manager | AL21: =COUNTIF(jan!$F21:$AJ21,"p") -> 0 | AM21: =COUNTIF(jan!$F21:$AJ21,"a") -> 0 | AN21: =COUNTIF(jan!$F21:$AJ21,"l") -> 0 | AO21: 2 | AP21: =IF(AN21>AO21,AN21-AO21,0) -> 0 | AQ21: 31 | AR21: 0 | AS21: 26000 | AT21: 1300 | AU21: =AS21/AQ21 -> 839 | AV21: =IF(AS21>20000,3000,2000) -> 3000 | AW21: =AU21*AR21 -> 0 | AX21: =IF(AL21=0,0,AW21+AV21-AT21) -> 0
B22: P013 | C22: Name 13 | D22: 2019-01-13 | E22: Officer | AL22: =COUNTIF(jan!$F22:$AJ22,"p") -> 0 | AM22: =COUNTIF(jan!$F22:$AJ22,"a") -> 0 | AN22: =COUNTIF(jan!$F22:$AJ22,"l") -> 0 | AO22: 2 | AP22: 0 | AQ22: 31 | AR22: 0 | AS22: 27000 | AT22: 1350 | AU22: 871 | AV22: 3000 | AW22: 0 | AX22: 0
B23: P014 | C23: Name 14 | D23: 2019-01-14 | E23: Clark | AL23: =COUNTIF(jan!$F23:$AJ23,"p") -> 0 | AM23: =COUNTIF(jan!$F23:$AJ23,"a") -> 0 | AN23: =COUNTIF(jan!$F23:$AJ23,"l") -> 0 | AO23: 2 | AP23: 0 | AQ23: 31 | AR23: 0 | AS23: 28000 | AT23: 1400 | AU23: 903 | AV23: 3000 | AW23: 0 | AX23: 0
B24: P015 | C24: Name 15 | D24: 2019-01-15 | E24: Manager | AL24: =COUNTIF(jan!$F24:$AJ24,"p") -> 0 | AM24: =COUNTIF(jan!$F24:$AJ24,"a") -> 0 | AN24: =COUNTIF(jan!$F24:$AJ24,"l") -> 0 | AO24: 2 | AP24: 0 | AQ24: 31 | AR24: 0 | AS24: 29000 | AT24: 1450 | AU24: 935 | AV24: 3000 | AW24: 0 | AX24: 0

Sheet feb
C2: Deepak EduWorld Pvt Ltd | AL2: Salary Calculatrion
B6: Attandance Sheet For Month | F6: =MID(CELL("filename",B2),FIND("]",CELL("filename",B2))+1,255) -> feb | K6: =DATEVALUE("1"&F6) -> 2019-02-01 | P6: To | Q6: =EOMONTH(K6,0) -> 2019-02-28
B8: Emp Id | C8: Name | D8: Date Of Joining | E8: Post | F8: =TEXT(F9,"ddd") -> Fri | G8: =TEXT(G9,"ddd") -> Sat | H8: =TEXT(H9,"ddd") -> Sun | I8: Mon | J8: Tue | K8: Wed | L8: Thu | M8: Fri | N8: Sat | O8: Sun | P8: Mon | Q8: Tue | R8: Wed | S8: Thu | T8: Fri | U8: Sat | V8: Sun | W8: Mon | X8: Tue | Y8: Wed | Z8: Thu | AA8: Fri | AB8: Sat | AC8: Sun | AD8: Mon | AE8: Tue | AF8: Wed | AG8: Thu | AL8: Presence | AM8: Absence | AN8: Leave Taken | AO8: Allowed Leave | AP8: Leave Charges | AQ8: Total Days of month | AR8: Total Payable Days | AS8: Basic Salary | AT8: PF 5% | AU8: Per Day Amount | AV8: HRA | AW8: Total Amount | AX8: In Hand Salary
F9: =K6 -> 2019-02-01 | G9: =IF(F9<$Q$6,F9+1,"") -> 2019-02-02 | H9: 2019-02-03 | I9: 2019-02-04 | J9: 2019-02-05 | K9: 2019-02-06 | L9: 2019-02-07 | M9: 2019-02-08 | N9: 2019-02-09 | O9: 2019-02-10 | P9: 2019-02-11 | Q9: 2019-02-12 | R9: 2019-02-13 | S9: 2019-02-14 | T9: 2019-02-15 | U9: 2019-02-16 | V9: 2019-02-17 | W9: 2019-02-18 | X9: 2019-02-19 | Y9: 2019-02-20 | Z9: 2019-02-21 | AA9: 2019-02-22 | AB9: 2019-02-23 | AC9: 2019-02-24 | AD9: 2019-02-25 | AE9: 2019-02-26 | AF9: 2019-02-27 | AG9: 2019-02-28
B10: P001 | C10: Name 1 | D10: 2019-01-01 | E10: Manager | F10: p | G10: p | I10: p | J10: p | L10: p | M10: p | N10: p | P10: p | Q10: p | S10: p | T10: a | U10: a | W10: p | X10: p | Z10: p | AA10: p | AB10: p | AD10: p | AE10: p | AG10: p | AH10: p | AI10: p | AJ10: p | AL10: =COUNTIF(feb!$F10:$AJ10,"p") -> 21 | AM10: =COUNTIF(feb!$F10:$AJ10,"a") -> 2 | AN10: =COUNTIF(feb!$F10:$AJ10,"l") -> 0 | AO10: 2 | AP10: =IF(AN10>AO10,AN10-AO10,0) -> 0 | AQ10: =DAY($Q$6) -> 28 | AR10: =IF(AL10=0,0,COUNTIF($F$8:$AJ$8,"sun")+AL10) -> 25 | AS10: 15000 | AT10: =AS10*5% -> 750 | AU10: =AS10/AQ10 -> 536 | AV10: =IF(AS10>20000,3000,2000) -> 2000 | AW10: =AU10*AR10 -> 13392.85714 | AX10: =IF(AL10=0,0,AW10+AV10-AT10) -> 14643
B11: P002 | C11: Name 2 | D11: 2019-01-02 | E11: Officer | F11: p | G11: p | I11: p | J11: p | L11: p | M11: p | N11: p | P11: p | Q11: p | S11: p | T11: p | U11: p | W11: p | X11: p | Z11: p | AA11: p | AB11: p | AD11: p | AE11: p | AG11: p | AH11: p | AI11: p | AJ11: p | AL11: =COUNTIF(feb!$F11:$AJ11,"p") -> 23 | AM11: =COUNTIF(feb!$F11:$AJ11,"a") -> 0 | AN11: =COUNTIF(feb!$F11:$AJ11,"l") -> 0 | AO11: 2 | AP11: =IF(AN11>AO11,AN11-AO11,0) -> 0 | AQ11: 28 | AR11: =IF(AL11=0,0,COUNTIF($F$8:$AJ$8,"sun")+AL11) -> 27 | AS11: 16000 | AT11: =AS11*5% -> 800 | AU11: =AS11/AQ11 -> 571 | AV11: =IF(AS11>20000,3000,2000) -> 2000 | AW11: =AU11*AR11 -> 15428.57143 | AX11: =IF(AL11=0,0,AW11+AV11-AT11) -> 16629
B12: P003 | C12: Name 3 | D12: 2019-01-03 | E12: Clark | F12: p | G12: p | I12: p | J12: p | L12: p | M12: p | N12: p | P12: p | Q12: p | S12: p | T12: p | U12: p | W12: p | X12: p | Z12: p | AA12: p | AB12: p | AD12: p | AE12: p | AG12: p | AH12: p | AI12: p | AJ12: p | AL12: =COUNTIF(feb!$F12:$AJ12,"p") -> 23 | AM12: =COUNTIF(feb!$F12:$AJ12,"a") -> 0 | AN12: =COUNTIF(feb!$F12:$AJ12,"l") -> 0 | AO12: 2 | AP12: 0 | AQ12: 28 | AR12: 27 | AS12: 17000 | AT12: 850 | AU12: 607 | AV12: 2000 | AW12: 16392.85714 | AX12: 17543
B13: P004 | C13: Name 4 | D13: 2019-01-04 | E13: Manager | F13: p | G13: p | I13: p | J13: p | L13: p | M13: p | N13: p | P13: p | Q13: p | S13: p | T13: p | U13: p | W13: p | X13: p | Z13: p | AA13: p | AB13: p | AD13: p | AE13: p | AG13: p | AH13: p | AI13: p | AJ13: p | AL13: =COUNTIF(feb!$F13:$AJ13,"p") -> 23 | AM13: =COUNTIF(feb!$F13:$AJ13,"a") -> 0 | AN13: =COUNTIF(feb!$F13:$AJ13,"l") -> 0 | AO13: 2 | AP13: 0 | AQ13: 28 | AR13: 27 | AS13: 18000 | AT13: 900 | AU13: 643 | AV13: 2000 | AW13: 17357.14286 | AX13: 18457
B14: P005 | C14: Name 5 | D14: 2019-01-05 | E14: Officer | F14: p | G14: p | I14: p | J14: p | L14: p | M14: p | N14: p | P14: p | Q14: p | S14: p | T14: p | U14: p | W14: p | X14: p | Z14: p | AA14: p | AB14: p | AD14: p | AE14: p | AG14: p | AH14: p | AI14: p | AJ14: p | AL14: =COUNTIF(feb!$F14:$AJ14,"p") -> 23 | AM14: =COUNTIF(feb!$F14:$AJ14,"a") -> 0 | AN14: =COUNTIF(feb!$F14:$AJ14,"l") -> 0 | AO14: 2 | AP14: 0 | AQ14: 28 | AR14: 27 | AS14: 19000 | AT14: 950 | AU14: 679 | AV14: 2000 | AW14: 18321.42857 | AX14: 19371
B15: P006 | C15: Name 6 | D15: 2019-01-06 | E15: Clark | F15: p | G15: p | I15: p | J15: p | L15: p | M15: p | N15: p | P15: p | Q15: p | S15: p | T15: p | U15: p | W15: p | X15: p | Z15: p | AA15: p | AB15: p | AD15: p | AE15: p | AG15: p | AH15: p | AI15: p | AJ15: p | AL15: =COUNTIF(feb!$F15:$AJ15,"p") -> 23 | AM15: =COUNTIF(feb!$F15:$AJ15,"a") -> 0 | AN15: =COUNTIF(feb!$F15:$AJ15,"l") -> 0 | AO15: 2 | AP15: 0 | AQ15: 28 | AR15: 27 | AS15: 20000 | AT15: 1000 | AU15: 714 | AV15: 2000 | AW15: 19285.71429 | AX15: 20286
B16: P007 | C16: Name 7 | D16: 2019-01-07 | E16: Manager | F16: p | G16: p | I16: p | J16: p | L16: p | M16: p | N16: p | P16: p | Q16: p | S16: p | T16: p | U16: p | W16: p | X16: p | Z16: p | AA16: p | AB16: p | AD16: p | AE16: p | AG16: p | AH16: p | AI16: p | AJ16: p | AL16: =COUNTIF(feb!$F16:$AJ16,"p") -> 23 | AM16: =COUNTIF(feb!$F16:$AJ16,"a") -> 0 | AN16: =COUNTIF(feb!$F16:$AJ16,"l") -> 0 | AO16: 2 | AP16: 0 | AQ16: 28 | AR16: 27 | AS16: 21000 | AT16: 1050 | AU16: 750 | AV16: 3000 | AW16: 20250 | AX16: 22200
B17: P008 | C17: Name 8 | D17: 2019-01-08 | E17: Officer | F17: p | G17: p | I17: p | J17: p | L17: p | M17: p | N17: p | P17: p | Q17: p | S17: p | T17: p | U17: p | W17: p | X17: p | Z17: p | AA17: p | AB17: p | AD17: p | AE17: p | AG17: p | AH17: p | AI17: p | AJ17: p | AL17: =COUNTIF(feb!$F17:$AJ17,"p") -> 23 | AM17: =COUNTIF(feb!$F17:$AJ17,"a") -> 0 | AN17: =COUNTIF(feb!$F17:$AJ17,"l") -> 0 | AO17: 2 | AP17: 0 | AQ17: 28 | AR17: 27 | AS17: 22000 | AT17: 1100 | AU17: 786 | AV17: 3000 | AW17: 21214.28571 | AX17: 23114
B18: P009 | C18: Name 9 | D18: 2019-01-09 | E18: Clark | F18: p | G18: p | I18: p | J18: p | L18: p | M18: p | N18: p | P18: p | Q18: p | S18: p | T18: p | U18: p | W18: p | X18: p | Z18: p | AA18: p | AB18: p | AD18: p | AE18: p | AG18: p | AH18: p | AI18: p | AJ18: p | AL18: =COUNTIF(feb!$F18:$AJ18,"p") -> 23 | AM18: =COUNTIF(feb!$F18:$AJ18,"a") -> 0 | AN18: =COUNTIF(feb!$F18:$AJ18,"l") -> 0 | AO18: 2 | AP18: 0 | AQ18: 28 | AR18: 27 | AS18: 23000 | AT18: 1150 | AU18: 821 | AV18: 3000 | AW18: 22178.57143 | AX18: 24029
B19: P010 | C19: Name 10 | D19: 2019-01-10 | E19: Manager | F19: p | G19: p | I19: p | J19: p | L19: p | M19: p | N19: p | P19: p | Q19: p | S19: p | T19: p | U19: p | W19: p | X19: p | Z19: p | AA19: p | AB19: p | AD19: p | AE19: p | AG19: p | AH19: p | AI19: p | AJ19: p | AL19: =COUNTIF(feb!$F19:$AJ19,"p") -> 23 | AM19: =COUNTIF(feb!$F19:$AJ19,"a") -> 0 | AN19: =COUNTIF(feb!$F19:$AJ19,"l") -> 0 | AO19: 2 | AP19: 0 | AQ19: 28 | AR19: 27 | AS19: 24000 | AT19: 1200 | AU19: 857 | AV19: 3000 | AW19: 23142.85714 | AX19: 24943
B20: P011 | C20: Name 11 | D20: 2019-01-11 | E20: Officer | F20: p | G20: p | I20: p | J20: p | L20: p | M20: p | N20: p | P20: p | Q20: p | S20: p | T20: p | U20: p | W20: p | X20: p | Z20: p | AA20: p | AB20: p | AD20: p | AE20: p | AG20: p | AH20: p | AI20: p | AJ20: p | AL20: =COUNTIF(feb!$F20:$AJ20,"p") -> 23 | AM20: =COUNTIF(feb!$F20:$AJ20,"a") -> 0 | AN20: =COUNTIF(feb!$F20:$AJ20,"l") -> 0 | AO20: 2 | AP20: 0 | AQ20: 28 | AR20: 27 | AS20: 25000 | AT20: 1250 | AU20: 893 | AV20: 3000 | AW20: 24107.14286 | AX20: 25857
B21: P012 | C21: Name 12 | D21: 2019-01-12 | E21: Manager | AL21: =COUNTIF(feb!$F21:$AJ21,"p") -> 0 | AM21: =COUNTIF(feb!$F21:$AJ21,"a") -> 0 | AN21: =COUNTIF(feb!$F21:$AJ21,"l") -> 0 | AO21: 2 | AP21: 0 | AQ21: 28 | AR21: 0 | AS21: 26000 | AT21: 1300 | AU21: 929 | AV21: 3000 | AW21: 0 | AX21: 0
B22: P013 | C22: Name 13 | D22: 2019-01-13 | E22: Officer | AL22: =COUNTIF(feb!$F22:$AJ22,"p") -> 0 | AM22: =COUNTIF(feb!$F22:$AJ22,"a") -> 0 | AN22: =COUNTIF(feb!$F22:$AJ22,"l") -> 0 | AO22: 2 | AP22: 0 | AQ22: 28 | AR22: 0 | AS22: 27000 | AT22: 1350 | AU22: 964 | AV22: 3000 | AW22: 0 | AX22: 0
B23: P014 | C23: Name 14 | D23: 2019-01-14 | E23: Clark | AL23: =COUNTIF(feb!$F23:$AJ23,"p") -> 0 | AM23: =COUNTIF(feb!$F23:$AJ23,"a") -> 0 | AN23: =COUNTIF(feb!$F23:$AJ23,"l") -> 0 | AO23: 2 | AP23: 0 | AQ23: 28 | AR23: 0 | AS23: 28000 | AT23: 1400 | AU23: 1000 | AV23: 3000 | AW23: 0 | AX23: 0
B24: P015 | C24: Name 15 | D24: 2019-01-15 | E24: Manager | AL24: =COUNTIF(feb!$F24:$AJ24,"p") -> 0 | AM24: =COUNTIF(feb!$F24:$AJ24,"a") -> 0 | AN24: =COUNTIF(feb!$F24:$AJ24,"l") -> 0 | AO24: 2 | AP24: 0 | AQ24: 28 | AR24: 0 | AS24: 29000 | AT24: 1450 | AU24: 1036 | AV24: 3000 | AW24: 0 | AX24: 0

Sheet mar
C2: Deepak EduWorld Pvt Ltd | AL2: Salary Calculatrion
B6: Attandance Sheet For Month | F6: =MID(CELL("filename",B2),FIND("]",CELL("filename",B2))+1,255) -> mar | K6: =DATEVALUE("1"&F6) -> 2019-03-01 | P6: To | Q6: =EOMONTH(K6,0) -> 2019-03-31
B8: Emp Id | C8: Name | D8: Date Of Joining | E8: Post | F8: =TEXT(F9,"ddd") -> Fri | G8: =TEXT(G9,"ddd") -> Sat | H8: =TEXT(H9,"ddd") -> Sun | I8: Mon | J8: Tue | K8: Wed | L8: Thu | M8: Fri | N8: Sat | O8: Sun | P8: Mon | Q8: Tue | R8: Wed | S8: Thu | T8: Fri | U8: Sat | V8: Sun | W8: Mon | X8: Tue | Y8: Wed | Z8: Thu | AA8: Fri | AB8: Sat | AC8: Sun | AD8: Mon | AE8: Tue | AF8: Wed | AG8: Thu | AH8: Fri | AI8: Sat | AJ8: Sun | AL8: Presence | AM8: Absence | AN8: Leave Taken | AO8: Allowed Leave | AP8: Leave Charges | AQ8: Total Days of month | AR8: Total Payable Days | AS8: Basic Salary | AT8: PF 5% | AU8: Per Day Amount | AV8: HRA | AW8: Total Amount | AX8: In Hand Salary
F9: =K6 -> 2019-03-01 | G9: =IF(F9<$Q$6,F9+1,"") -> 2019-03-02 | H9: 2019-03-03 | I9: 2019-03-04 | J9: 2019-03-05 | K9: 2019-03-06 | L9: 2019-03-07 | M9: 2019-03-08 | N9: 2019-03-09 | O9: 2019-03-10 | P9: 2019-03-11 | Q9: 2019-03-12 | R9: 2019-03-13 | S9: 2019-03-14 | T9: 2019-03-15 | U9: 2019-03-16 | V9: 2019-03-17 | W9: 2019-03-18 | X9: 2019-03-19 | Y9: 2019-03-20 | Z9: 2019-03-21 | AA9: 2019-03-22 | AB9: 2019-03-23 | AC9: 2019-03-24 | AD9: 2019-03-25 | AE9: 2019-03-26 | AF9: 2019-03-27 | AG9: 2019-03-28 | AH9: 2019-03-29 | AI9: 2019-03-30 | AJ9: 2019-03-31
B10: P001 | C10: Name 1 | D10: 2019-01-01 | E10: Manager | F10: p | G10: p | I10: p | J10: p | L10: p | M10: p | N10: p | P10: p | Q10: p | S10: p | T10: a | U10: a | W10: p | X10: p | Z10: p | AA10: p | AB10: p | AD10: p | AE10: p | AG10: p | AH10: p | AI10: p | AJ10: p | AL10: =COUNTIF(mar!$F10:$AJ10,"p") -> 21 | AM10: =COUNTIF(mar!$F10:$AJ10,"a") -> 2 | AN10: =COUNTIF(mar!$F10:$AJ10,"l") -> 0 | AO10: 2 | AP10: =IF(AN10>AO10,AN10-AO10,0) -> 0 | AQ10: =DAY($Q$6) -> 31 | AR10: =IF(AL10=0,0,COUNTIF($F$8:$AJ$8,"sun")+AL10) -> 26 | AS10: 15000 | AT10: =AS10*5% -> 750 | AU10: =AS10/AQ10 -> 484 | AV10: =IF(AS10>20000,3000,2000) -> 2000 | AW10: =AU10*AR10 -> 12580.64516 | AX10: =IF(AL10=0,0,AW10+AV10-AT10) -> 13831
B11: P002 | C11: Name 2 | D11: 2019-01-02 | E11: Officer | F11: p | G11: p | I11: p | J11: p | L11: p | M11: p | N11: p | P11: p | Q11: p | S11: p | T11: p | U11: p | W11: p | X11: p | Z11: p | AA11: p | AB11: p | AD11: p | AE11: p | AG11: p | AH11: p | AI11: p | AJ11: p | AL11: =COUNTIF(mar!$F11:$AJ11,"p") -> 23 | AM11: =COUNTIF(mar!$F11:$AJ11,"a") -> 0 | AN11: =COUNTIF(mar!$F11:$AJ11,"l") -> 0 | AO11: 2 | AP11: =IF(AN11>AO11,AN11-AO11,0) -> 0 | AQ11: 31 | AR11: =IF(AL11=0,0,COUNTIF($F$8:$AJ$8,"sun")+AL11) -> 28 | AS11: 16000 | AT11: =AS11*5% -> 800 | AU11: =AS11/AQ11 -> 516 | AV11: =IF(AS11>20000,3000,2000) -> 2000 | AW11: =AU11*AR11 -> 14451.6129 | AX11: =IF(AL11=0,0,AW11+AV11-AT11) -> 15652
B12: P003 | C12: Name 3 | D12: 2019-01-03 | E12: Clark | F12: p | G12: p | I12: p | J12: p | L12: p | M12: p | N12: p | P12: p | Q12: p | S12: p | T12: p | U12: p | W12: p | X12: p | Z12: p | AA12: p | AB12: p | AD12: p | AE12: p | AG12: p | AH12: p | AI12: p | AJ12: p | AL12: =COUNTIF(mar!$F12:$AJ12,"p") -> 23 | AM12: =COUNTIF(mar!$F12:$AJ12,"a") -> 0 | AN12: =COUNTIF(mar!$F12:$AJ12,"l") -> 0 | AO12: 2 | AP12: 0 | AQ12: 31 | AR12: 28 | AS12: 17000 | AT12: 850 | AU12: 548 | AV12: 2000 | AW12: 15354.83871 | AX12: 16505
B13: P004 | C13: Name 4 | D13: 2019-01-04 | E13: Manager | F13: p | G13: p | I13: p | J13: p | L13: p | M13: p | N13: p | P13: p | Q13: p | S13: p | T13: p | U13: p | W13: p | X13: p | Z13: p | AA13: p | AB13: p | AD13: p | AE13: p | AG13: p | AH13: p | AI13: p | AJ13: p | AL13: =COUNTIF(mar!$F13:$AJ13,"p") -> 23 | AM13: =COUNTIF(mar!$F13:$AJ13,"a") -> 0 | AN13: =COUNTIF(mar!$F13:$AJ13,"l") -> 0 | AO13: 2 | AP13: 0 | AQ13: 31 | AR13: 28 | AS13: 18000 | AT13: 900 | AU13: 581 | AV13: 2000 | AW13: 16258.06452 | AX13: 17358
B14: P005 | C14: Name 5 | D14: 2019-01-05 | E14: Officer | F14: p | G14: p | I14: p | J14: p | L14: p | M14: p | N14: p | P14: p | Q14: p | S14: p | T14: p | U14: p | W14: p | X14: p | Z14: p | AA14: p | AB14: p | AD14: p | AE14: p | AG14: p | AH14: p | AI14: p | AJ14: p | AL14: =COUNTIF(mar!$F14:$AJ14,"p") -> 23 | AM14: =COUNTIF(mar!$F14:$AJ14,"a") -> 0 | AN14: =COUNTIF(mar!$F14:$AJ14,"l") -> 0 | AO14: 2 | AP14: 0 | AQ14: 31 | AR14: 28 | AS14: 19000 | AT14: 950 | AU14: 613 | AV14: 2000 | AW14: 17161.29032 | AX14: 18211
B15: P006 | C15: Name 6 | D15: 2019-01-06 | E15: Clark | F15: p | G15: p | I15: p | J15: p | L15: p | M15: p | N15: p | P15: p | Q15: p | S15: p | T15: p | U15: p | W15: p | X15: p | Z15: p | AA15: p | AB15: p | AD15: p | AE15: p | AG15: p | AH15: p | AI15: p | AJ15: p | AL15: =COUNTIF(mar!$F15:$AJ15,"p") -> 23 | AM15: =COUNTIF(mar!$F15:$AJ15,"a") -> 0 | AN15: =COUNTIF(mar!$F15:$AJ15,"l") -> 0 | AO15: 2 | AP15: 0 | AQ15: 31 | AR15: 28 | AS15: 20000 | AT15: 1000 | AU15: 645 | AV15: 2000 | AW15: 18064.51613 | AX15: 19065
B16: P007 | C16: Name 7 | D16: 2019-01-07 | E16: Manager | F16: p | G16: p | I16: p | J16: p | L16: p | M16: p | N16: p | P16: p | Q16: p | S16: p | T16: p | U16: p | W16: p | X16: p | Z16: p | AA16: p | AB16: p | AD16: p | AE16: p | AG16: p | AH16: p | AI16: p | AJ16: p | AL16: =COUNTIF(mar!$F16:$AJ16,"p") -> 23 | AM16: =COUNTIF(mar!$F16:$AJ16,"a") -> 0 | AN16: =COUNTIF(mar!$F16:$AJ16,"l") -> 0 | AO16: 2 | AP16: 0 | AQ16: 31 | AR16: 28 | AS16: 21000 | AT16: 1050 | AU16: 677 | AV16: 3000 | AW16: 18967.74194 | AX16: 20918
B17: P008 | C17: Name 8 | D17: 2019-01-08 | E17: Officer | F17: p | G17: p | I17: p | J17: p | L17: p | M17: p | N17: p | P17: p | Q17: p | S17: p | T17: p | U17: p | W17: p | X17: p | Z17: p | AA17: p | AB17: p | AD17: p | AE17: p | AG17: p | AH17: p | AI17: p | AJ17: p | AL17: =COUNTIF(mar!$F17:$AJ17,"p") -> 23 | AM17: =COUNTIF(mar!$F17:$AJ17,"a") -> 0 | AN17: =COUNTIF(mar!$F17:$AJ17,"l") -> 0 | AO17: 2 | AP17: 0 | AQ17: 31 | AR17: 28 | AS17: 22000 | AT17: 1100 | AU17: 710 | AV17: 3000 | AW17: 19870.96774 | AX17: 21771
B18: P009 | C18: Name 9 | D18: 2019-01-09 | E18: Clark | F18: p | G18: p | I18: p | J18: p | L18: p | M18: p | N18: p | P18: p | Q18: p | S18: p | T18: p | U18: p | W18: p | X18: p | Z18: p | AA18: p | AB18: p | AD18: p | AE18: p | AG18: p | AH18: p | AI18: p | AJ18: p | AL18: =COUNTIF(mar!$F18:$AJ18,"p") -> 23 | AM18: =COUNTIF(mar!$F18:$AJ18,"a") -> 0 | AN18: =COUNTIF(mar!$F18:$AJ18,"l") -> 0 | AO18: 2 | AP18: 0 | AQ18: 31 | AR18: 28 | AS18: 23000 | AT18: 1150 | AU18: 742 | AV18: 3000 | AW18: 20774.19355 | AX18: 22624
B19: P010 | C19: Name 10 | D19: 2019-01-10 | E19: Manager | F19: p | G19: p | I19: p | J19: p | L19: p | M19: p | N19: p | P19: p | Q19: p | S19: p | T19: p | U19: p | W19: p | X19: p | Z19: p | AA19: p | AB19: p | AD19: p | AE19: p | AG19: p | AH19: p | AI19: p | AJ19: p | AL19: =COUNTIF(mar!$F19:$AJ19,"p") -> 23 | AM19: =COUNTIF(mar!$F19:$AJ19,"a") -> 0 | AN19: =COUNTIF(mar!$F19:$AJ19,"l") -> 0 | AO19: 2 | AP19: 0 | AQ19: 31 | AR19: 28 | AS19: 24000 | AT19: 1200 | AU19: 774 | AV19: 3000 | AW19: 21677.41935 | AX19: 23477
B20: P011 | C20: Name 11 | D20: 2019-01-11 | E20: Officer | F20: p | G20: p | I20: p | J20: p | L20: p | M20: p | N20: p | P20: p | Q20: p | S20: p | T20: p | U20: p | W20: p | X20: p | Z20: p | AA20: p | AB20: p | AD20: p | AE20: p | AG20: p | AH20: p | AI20: p | AJ20: p | AL20: =COUNTIF(mar!$F20:$AJ20,"p") -> 23 | AM20: =COUNTIF(mar!$F20:$AJ20,"a") -> 0 | AN20: =COUNTIF(mar!$F20:$AJ20,"l") -> 0 | AO20: 2 | AP20: 0 | AQ20: 31 | AR20: 28 | AS20: 25000 | AT20: 1250 | AU20: 806 | AV20: 3000 | AW20: 22580.64516 | AX20: 24331
B21: P012 | C21: Name 12 | D21: 2019-01-12 | E21: Manager | AL21: =COUNTIF(mar!$F21:$AJ21,"p") -> 0 | AM21: =COUNTIF(mar!$F21:$AJ21,"a") -> 0 | AN21: =COUNTIF(mar!$F21:$AJ21,"l") -> 0 | AO21: 2 | AP21: 0 | AQ21: 31 | AR21: 0 | AS21: 26000 | AT21: 1300 | AU21: 839 | AV21: 3000 | AW21: 0 | AX21: 0
B22: P013 | C22: Name 13 | D22: 2019-01-13 | E22: Officer | AL22: =COUNTIF(mar!$F22:$AJ22,"p") -> 0 | AM22: =COUNTIF(mar!$F22:$AJ22,"a") -> 0 | AN22: =COUNTIF(mar!$F22:$AJ22,"l") -> 0 | AO22: 2 | AP22: 0 | AQ22: 31 | AR22: 0 | AS22: 27000 | AT22: 1350 | AU22: 871 | AV22: 3000 | AW22: 0 | AX22: 0
B23: P014 | C23: Name 14 | D23: 2019-01-14 | E23: Clark | AL23: =COUNTIF(mar!$F23:$AJ23,"p") -> 0 | AM23: =COUNTIF(mar!$F23:$AJ23,"a") -> 0 | AN23: =COUNTIF(mar!$F23:$AJ23,"l") -> 0 | AO23: 2 | AP23: 0 | AQ23: 31 | AR23: 0 | AS23: 28000 | AT23: 1400 | AU23: 903 | AV23: 3000 | AW23: 0 | AX23: 0
B24: P015 | C24: Name 15 | D24: 2019-01-15 | E24: Manager | AL24: =COUNTIF(mar!$F24:$AJ24,"p") -> 0 | AM24: =COUNTIF(mar!$F24:$AJ24,"a") -> 0 | AN24: =COUNTIF(mar!$F24:$AJ24,"l") -> 0 | AO24: 2 | AP24: 0 | AQ24: 31 | AR24: 0 | AS24: 29000 | AT24: 1450 | AU24: 935 | AV24: 3000 | AW24: 0 | AX24: 0

Sheet apr
C2: Deepak EduWorld Pvt Ltd | AL2: Salary Calculatrion
B6: Attandance Sheet For Month | F6: =MID(CELL("filename",B2),FIND("]",CELL("filename",B2))+1,255) -> apr | K6: =DATEVALUE("1"&F6) -> 2019-04-01 | P6: To | Q6: =EOMONTH(K6,0) -> 2019-04-30
B8: Emp Id | C8: Name | D8: Date Of Joining | E8: Post | F8: =TEXT(F9,"ddd") -> Mon | G8: =TEXT(G9,"ddd") -> Tue | H8: =TEXT(H9,"ddd") -> Wed | I8: Thu | J8: Fri | K8: Sat | L8: Sun | M8: Mon | N8: Tue | O8: Wed | P8: Thu | Q8: Fri | R8: Sat | S8: Sun | T8: Mon | U8: Tue | V8: Wed | W8: Thu | X8: Fri | Y8: Sat | Z8: Sun | AA8: Mon | AB8: Tue | AC8: Wed | AD8: Thu | AE8: Fri | AF8: Sat | AG8: Sun | AH8: Mon | AI8: Tue | AL8: Presence | AM8: Absence | AN8: Leave Taken | AO8: Allowed Leave | AP8: Leave Charges | AQ8: Total Days of month | AR8: Total Payable Days | AS8: Basic Salary | AT8: PF 5% | AU8: Per Day Amount | AV8: HRA | AW8: Total Amount | AX8: In Hand Salary
F9: =K6 -> 2019-04-01 | G9: =IF(F9<$Q$6,F9+1,"") -> 2019-04-02 | H9: 2019-04-03 | I9: 2019-04-04 | J9: 2019-04-05 | K9: 2019-04-06 | L9: 2019-04-07 | M9: 2019-04-08 | N9: 2019-04-09 | O9: 2019-04-10 | P9: 2019-04-11 | Q9: 2019-04-12 | R9: 2019-04-13 | S9: 2019-04-14 | T9: 2019-04-15 | U9: 2019-04-16 | V9: 2019-04-17 | W9: 2019-04-18 | X9: 2019-04-19 | Y9: 2019-04-20 | Z9: 2019-04-21 | AA9: 2019-04-22 | AB9: 2019-04-23 | AC9: 2019-04-24 | AD9: 2019-04-25 | AE9: 2019-04-26 | AF9: 2019-04-27 | AG9: 2019-04-28 | AH9: 2019-04-29 | AI9: 2019-04-30
B10: P001 | C10: Name 1 | D10: 2019-01-01 | E10: Manager | F10: p | G10: p | I10: p | J10: p | M10: p | N10: p | P10: p | Q10: p | T10: a | U10: a | W10: p | X10: p | AA10: p | AB10: p | AD10: p | AE10: p | AH10: p | AI10: p | AJ10: p | AL10: =COUNTIF(apr!$F10:$AJ10,"p") -> 17 | AM10: =COUNTIF(apr!$F10:$AJ10,"a") -> 2 | AN10: =COUNTIF(apr!$F10:$AJ10,"l") -> 0 | AO10: 2 | AP10: =IF(AN10>AO10,AN10-AO10,0) -> 0 | AQ10: =DAY($Q$6) -> 30 | AR10: =IF(AL10=0,0,COUNTIF($F$8:$AJ$8,"sun")+AL10) -> 21 | AS10: 15000 | AT10: =AS10*5% -> 750 | AU10: =AS10/AQ10 -> 500 | AV10: =IF(AS10>20000,3000,2000) -> 2000 | AW10: =AU10*AR10 -> 10500 | AX10: =IF(AL10=0,0,AW10+AV10-AT10) -> 11750
B11: P002 | C11: Name 2 | D11: 2019-01-02 | E11: Officer | F11: p | G11: p | I11: p | J11: p | M11: p | N11: p | P11: p | Q11: p | T11: p | U11: p | W11: p | X11: p | AA11: p | AB11: p | AD11: p | AE11: p | AH11: p | AI11: p | AJ11: p | AL11: =COUNTIF(apr!$F11:$AJ11,"p") -> 19 | AM11: =COUNTIF(apr!$F11:$AJ11,"a") -> 0 | AN11: =COUNTIF(apr!$F11:$AJ11,"l") -> 0 | AO11: 2 | AP11: =IF(AN11>AO11,AN11-AO11,0) -> 0 | AQ11: 30 | AR11: =IF(AL11=0,0,COUNTIF($F$8:$AJ$8,"sun")+AL11) -> 23 | AS11: 16000 | AT11: =AS11*5% -> 800 | AU11: =AS11/AQ11 -> 533 | AV11: =IF(AS11>20000,3000,2000) -> 2000 | AW11: =AU11*AR11 -> 12266.66667 | AX11: =IF(AL11=0,0,AW11+AV11-AT11) -> 13467
B12: P003 | C12: Name 3 | D12: 2019-01-03 | E12: Clark | F12: p | G12: p | I12: p | J12: p | M12: p | N12: p | P12: p | Q12: p | T12: p | U12: p | W12: p | X12: p | AA12: p | AB12: p | AD12: p | AE12: p | AH12: p | AI12: p | AJ12: p | AL12: =COUNTIF(apr!$F12:$AJ12,"p") -> 19 | AM12: =COUNTIF(apr!$F12:$AJ12,"a") -> 0 | AN12: =COUNTIF(apr!$F12:$AJ12,"l") -> 0 | AO12: 2 | AP12: 0 | AQ12: 30 | AR12: 23 | AS12: 17000 | AT12: 850 | AU12: 567 | AV12: 2000 | AW12: 13033.33333 | AX12: 14183
B13: P004 | C13: Name 4 | D13: 2019-01-04 | E13: Manager | F13: p | G13: p | I13: p | J13: p | M13: p | N13: p | P13: p | Q13: p | T13: p | U13: p | W13: p | X13: p | AA13: p | AB13: p | AD13: p | AE13: p | AH13: p | AI13: p | AJ13: p | AL13: =COUNTIF(apr!$F13:$AJ13,"p") -> 19 | AM13: =COUNTIF(apr!$F13:$AJ13,"a") -> 0 | AN13: =COUNTIF(apr!$F13:$AJ13,"l") -> 0 | AO13: 2 | AP13: 0 | AQ13: 30 | AR13: 23 | AS13: 18000 | AT13: 900 | AU13: 600 | AV13: 2000 | AW13: 13800 | AX13: 14900
B14: P005 | C14: Name 5 | D14: 2019-01-05 | E14: Officer | F14: p | G14: p | I14: p | J14: p | M14: p | N14: p | P14: p | Q14: p | T14: p | U14: p | W14: p | X14: p | AA14: p | AB14: p | AD14: p | AE14: p | AH14: p | AI14: p | AJ14: p | AL14: =COUNTIF(apr!$F14:$AJ14,"p") -> 19 | AM14: =COUNTIF(apr!$F14:$AJ14,"a") -> 0 | AN14: =COUNTIF(apr!$F14:$AJ14,"l") -> 0 | AO14: 2 | AP14: 0 | AQ14: 30 | AR14: 23 | AS14: 19000 | AT14: 950 | AU14: 633 | AV14: 2000 | AW14: 14566.66667 | AX14: 15617
B15: P006 | C15: Name 6 | D15: 2019-01-06 | E15: Clark | F15: p | G15: p | I15: p | J15: p | M15: p | N15: p | P15: p | Q15: p | T15: p | U15: p | W15: p | X15: p | AA15: p | AB15: p | AD15: p | AE15: p | AH15: p | AI15: p | AJ15: p | AL15: =COUNTIF(apr!$F15:$AJ15,"p") -> 19 | AM15: =COUNTIF(apr!$F15:$AJ15,"a") -> 0 | AN15: =COUNTIF(apr!$F15:$AJ15,"l") -> 0 | AO15: 2 | AP15: 0 | AQ15: 30 | AR15: 23 | AS15: 20000 | AT15: 1000 | AU15: 667 | AV15: 2000 | AW15: 15333.33333 | AX15: 16333
B16: P007 | C16: Name 7 | D16: 2019-01-07 | E16: Manager | F16: p | G16: p | I16: p | J16: p | M16: p | N16: p | P16: p | Q16: p | T16: p | U16: p | W16: p | X16: p | AA16: p | AB16: p | AD16: p | AE16: p | AH16: p | AI16: p | AJ16: p | AL16: =COUNTIF(apr!$F16:$AJ16,"p") -> 19 | AM16: =COUNTIF(apr!$F16:$AJ16,"a") -> 0 | AN16: =COUNTIF(apr!$F16:$AJ16,"l") -> 0 | AO16: 2 | AP16: 0 | AQ16: 30 | AR16: 23 | AS16: 21000 | AT16: 1050 | AU16: 700 | AV16: 3000 | AW16: 16100 | AX16: 18050
B17: P008 | C17: Name 8 | D17: 2019-01-08 | E17: Officer | F17: p | G17: p | I17: p | J17: p | M17: p | N17: p | P17: p | Q17: p | T17: p | U17: p | W17: p | X17: p | AA17: p | AB17: p | AD17: p | AE17: p | AH17: p | AI17: p | AJ17: p | AL17: =COUNTIF(apr!$F17:$AJ17,"p") -> 19 | AM17: =COUNTIF(apr!$F17:$AJ17,"a") -> 0 | AN17: =COUNTIF(apr!$F17:$AJ17,"l") -> 0 | AO17: 2 | AP17: 0 | AQ17: 30 | AR17: 23 | AS17: 22000 | AT17: 1100 | AU17: 733 | AV17: 3000 | AW17: 16866.66667 | AX17: 18767
B18: P009 | C18: Name 9 | D18: 2019-01-09 | E18: Clark | F18: p | G18: p | I18: p | J18: p | M18: p | N18: p | P18: p | Q18: p | T18: p | U18: p | W18: p | X18: p | AA18: p | AB18: p | AD18: p | AE18: p | AH18: p | AI18: p | AJ18: p | AL18: =COUNTIF(apr!$F18:$AJ18,"p") -> 19 | AM18: =COUNTIF(apr!$F18:$AJ18,"a") -> 0 | AN18: =COUNTIF(apr!$F18:$AJ18,"l") -> 0 | AO18: 2 | AP18: 0 | AQ18: 30 | AR18: 23 | AS18: 23000 | AT18: 1150 | AU18: 767 | AV18: 3000 | AW18: 17633.33333 | AX18: 19483
B19: P010 | C19: Name 10 | D19: 2019-01-10 | E19: Manager | F19: p | G19: p | I19: p | J19: p | M19: p | N19: p | P19: p | Q19: p | T19: p | U19: p | W19: p | X19: p | AA19: p | AB19: p | AD19: p | AE19: p | AH19: p | AI19: p | AJ19: p | AL19: =COUNTIF(apr!$F19:$AJ19,"p") -> 19 | AM19: =COUNTIF(apr!$F19:$AJ19,"a") -> 0 | AN19: =COUNTIF(apr!$F19:$AJ19,"l") -> 0 | AO19: 2 | AP19: 0 | AQ19: 30 | AR19: 23 | AS19: 24000 | AT19: 1200 | AU19: 800 | AV19: 3000 | AW19: 18400 | AX19: 20200
B20: P011 | C20: Name 11 | D20: 2019-01-11 | E20: Officer | F20: p | G20: p | I20: p | J20: p | M20: p | N20: p | P20: p | Q20: p | T20: p | U20: p | W20: p | X20: p | AA20: p | AB20: p | AD20: p | AE20: p | AH20: p | AI20: p | AJ20: p | AL20: =COUNTIF(apr!$F20:$AJ20,"p") -> 19 | AM20: =COUNTIF(apr!$F20:$AJ20,"a") -> 0 | AN20: =COUNTIF(apr!$F20:$AJ20,"l") -> 0 | AO20: 2 | AP20: 0 | AQ20: 30 | AR20: 23 | AS20: 25000 | AT20: 1250 | AU20: 833 | AV20: 3000 | AW20: 19166.66667 | AX20: 20917
B21: P012 | C21: Name 12 | D21: 2019-01-12 | E21: Manager | AL21: =COUNTIF(apr!$F21:$AJ21,"p") -> 0 | AM21: =COUNTIF(apr!$F21:$AJ21,"a") -> 0 | AN21: =COUNTIF(apr!$F21:$AJ21,"l") -> 0 | AO21: 2 | AP21: 0 | AQ21: 30 | AR21: 0 | AS21: 26000 | AT21: 1300 | AU21: 867 | AV21: 3000 | AW21: 0 | AX21: 0
B22: P013 | C22: Name 13 | D22: 2019-01-13 | E22: Officer | AL22: =COUNTIF(apr!$F22:$AJ22,"p") -> 0 | AM22: =COUNTIF(apr!$F22:$AJ22,"a") -> 0 | AN22: =COUNTIF(apr!$F22:$AJ22,"l") -> 0 | AO22: 2 | AP22: 0 | AQ22: 30 | AR22: 0 | AS22: 27000 | AT22: 1350 | AU22: 900 | AV22: 3000 | AW22: 0 | AX22: 0
B23: P014 | C23: Name 14 | D23: 2019-01-14 | E23: Clark | AL23: =COUNTIF(apr!$F23:$AJ23,"p") -> 0 | AM23: =COUNTIF(apr!$F23:$AJ23,"a") -> 0 | AN23: =COUNTIF(apr!$F23:$AJ23,"l") -> 0 | AO23: 2 | AP23: 0 | AQ23: 30 | AR23: 0 | AS23: 28000 | AT23: 1400 | AU23: 933 | AV23: 3000 | AW23: 0 | AX23: 0
B24: P015 | C24: Name 15 | D24: 2019-01-15 | E24: Manager | AL24: =COUNTIF(apr!$F24:$AJ24,"p") -> 0 | AM24: =COUNTIF(apr!$F24:$AJ24,"a") -> 0 | AN24: =COUNTIF(apr!$F24:$AJ24,"l") -> 0 | AO24: 2 | AP24: 0 | AQ24: 30 | AR24: 0 | AS24: 29000 | AT24: 1450 | AU24: 967 | AV24: 3000 | AW24: 0 | AX24: 0

Sheet may
C2: Deepak EduWorld Pvt Ltd | AL2: Salary Calculatrion
B6: Attandance Sheet For Month | F6: =MID(CELL("filename",B2),FIND("]",CELL("filename",B2))+1,255) -> may | K6: =DATEVALUE("1"&F6) -> 2019-05-01 | P6: To | Q6: =EOMONTH(K6,0) -> 2019-05-31
B8: Emp Id | C8: Name | D8: Date Of Joining | E8: Post | F8: =TEXT(F9,"ddd") -> Wed | G8: =TEXT(G9,"ddd") -> Thu | H8: =TEXT(H9,"ddd") -> Fri | I8: Sat | J8: Sun | K8: Mon | L8: Tue | M8: Wed | N8: Thu | O8: Fri | P8: Sat | Q8: Sun | R8: Mon | S8: Tue | T8: Wed | U8: Thu | V8: Fri | W8: Sat | X8: Sun | Y8: Mon | Z8: Tue | AA8: Wed | AB8: Thu | AC8: Fri | AD8: Sat | AE8: Sun | AF8: Mon | AG8: Tue | AH8: Wed | AI8: Thu | AJ8: Fri | AL8: Presence | AM8: Absence | AN8: Leave Taken | AO8: Allowed Leave | AP8: Leave Charges | AQ8: Total Days of month | AR8: Total Payable Days | AS8: Basic Salary | AT8: PF 5% | AU8: Per Day Amount | AV8: HRA | AW8: Total Amount | AX8: In Hand Salary
F9: =K6 -> 2019-05-01 | G9: =IF(F9<$Q$6,F9+1,"") -> 2019-05-02 | H9: 2019-05-03 | I9: 2019-05-04 | J9: 2019-05-05 | K9: 2019-05-06 | L9: 2019-05-07 | M9: 2019-05-08 | N9: 2019-05-09 | O9: 2019-05-10 | P9: 2019-05-11 | Q9: 2019-05-12 | R9: 2019-05-13 | S9: 2019-05-14 | T9: 2019-05-15 | U9: 2019-05-16 | V9: 2019-05-17 | W9: 2019-05-18 | X9: 2019-05-19 | Y9: 2019-05-20 | Z9: 2019-05-21 | AA9: 2019-05-22 | AB9: 2019-05-23 | AC9: 2019-05-24 | AD9: 2019-05-25 | AE9: 2019-05-26 | AF9: 2019-05-27 | AG9: 2019-05-28 | AH9: 2019-05-29 | AI9: 2019-05-30 | AJ9: 2019-05-31
B10: P001 | C10: Name 1 | D10: 2019-01-01 | E10: Manager | AL10: =COUNTIF(may!$F10:$AJ10,"p") -> 0 | AM10: =COUNTIF(may!$F10:$AJ10,"a") -> 0 | AN10: =COUNTIF(may!$F10:$AJ10,"l") -> 0 | AO10: 2 | AP10: =IF(AN10>AO10,AN10-AO10,0) -> 0 | AQ10: =DAY($Q$6) -> 31 | AR10: =IF(AL10=0,0,COUNTIF($F$8:$AJ$8,"sun")+AL10) -> 0 | AS10: 15000 | AT10: =AS10*5% -> 750 | AU10: =AS10/AQ10 -> 484 | AV10: =IF(AS10>20000,3000,2000) -> 2000 | AW10: =AU10*AR10 -> 0 | AX10: =IF(AL10=0,0,AW10+AV10-AT10) -> 0
B11: P002 | C11: Name 2 | D11: 2019-01-02 | E11: Officer | AL11: =COUNTIF(may!$F11:$AJ11,"p") -> 0 | AM11: =COUNTIF(may!$F11:$AJ11,"a") -> 0 | AN11: =COUNTIF(may!$F11:$AJ11,"l") -> 0 | AO11: 2 | AP11: =IF(AN11>AO11,AN11-AO11,0) -> 0 | AQ11: 31 | AR11: =IF(AL11=0,0,COUNTIF($F$8:$AJ$8,"sun")+AL11) -> 0 | AS11: 16000 | AT11: =AS11*5% -> 800 | AU11: =AS11/AQ11 -> 516 | AV11: =IF(AS11>20000,3000,2000) -> 2000 | AW11: =AU11*AR11 -> 0 | AX11: =IF(AL11=0,0,AW11+AV11-AT11) -> 0
B12: P003 | C12: Name 3 | D12: 2019-01-03 | E12: Clark | AL12: =COUNTIF(may!$F12:$AJ12,"p") -> 0 | AM12: =COUNTIF(may!$F12:$AJ12,"a") -> 0 | AN12: =COUNTIF(may!$F12:$AJ12,"l") -> 0 | AO12: 2 | AP12: 0 | AQ12: 31 | AR12: 0 | AS12: 17000 | AT12: 850 | AU12: 548 | AV12: 2000 | AW12: 0 | AX12: 0
B13: P004 | C13: Name 4 | D13: 2019-01-04 | E13: Manager | AL13: =COUNTIF(may!$F13:$AJ13,"p") -> 0 | AM13: =COUNTIF(may!$F13:$AJ13,"a") -> 0 | AN13: =COUNTIF(may!$F13:$AJ13,"l") -> 0 | AO13: 2 | AP13: 0 | AQ13: 31 | AR13: 0 | AS13: 18000 | AT13: 900 | AU13: 581 | AV13: 2000 | AW13: 0 | AX13: 0
B14: P005 | C14: Name 5 | D14: 2019-01-05 | E14: Officer | AL14: =COUNTIF(may!$F14:$AJ14,"p") -> 0 | AM14: =COUNTIF(may!$F14:$AJ14,"a") -> 0 | AN14: =COUNTIF(may!$F14:$AJ14,"l") -> 0 | AO14: 2 | AP14: 0 | AQ14: 31 | AR14: 0 | AS14: 19000 | AT14: 950 | AU14: 613 | AV14: 2000 | AW14: 0 | AX14: 0
B15: P006 | C15: Name 6 | D15: 2019-01-06 | E15: Clark | AL15: =COUNTIF(may!$F15:$AJ15,"p") -> 0 | AM15: =COUNTIF(may!$F15:$AJ15,"a") -> 0 | AN15: =COUNTIF(may!$F15:$AJ15,"l") -> 0 | AO15: 2 | AP15: 0 | AQ15: 31 | AR15: 0 | AS15: 20000 | AT15: 1000 | AU15: 645 | AV15: 2000 | AW15: 0 | AX15: 0
B16: P007 | C16: Name 7 | D16: 2019-01-07 | E16: Manager | AL16: =COUNTIF(may!$F16:$AJ16,"p") -> 0 | AM16: =COUNTIF(may!$F16:$AJ16,"a") -> 0 | AN16: =COUNTIF(may!$F16:$AJ16,"l") -> 0 | AO16: 2 | AP16: 0 | AQ16: 31 | AR16: 0 | AS16: 21000 | AT16: 1050 | AU16: 677 | AV16: 3000 | AW16: 0 | AX16: 0
B17: P008 | C17: Name 8 | D17: 2019-01-08 | E17: Officer | AL17: =COUNTIF(may!$F17:$AJ17,"p") -> 0 | AM17: =COUNTIF(may!$F17:$AJ17,"a") -> 0 | AN17: =COUNTIF(may!$F17:$AJ17,"l") -> 0 | AO17: 2 | AP17: 0 | AQ17: 31 | AR17: 0 | AS17: 22000 | AT17: 1100 | AU17: 710 | AV17: 3000 | AW17: 0 | AX17: 0
B18: P009 | C18: Name 9 | D18: 2019-01-09 | E18: Clark | AL18: =COUNTIF(may!$F18:$AJ18,"p") -> 0 | AM18: =COUNTIF(may!$F18:$AJ18,"a") -> 0 | AN18: =COUNTIF(may!$F18:$AJ18,"l") -> 0 | AO18: 2 | AP18: 0 | AQ18: 31 | AR18: 0 | AS18: 23000 | AT18: 1150 | AU18: 742 | AV18: 3000 | AW18: 0 | AX18: 0
B19: P010 | C19: Name 10 | D19: 2019-01-10 | E19: Manager | AL19: =COUNTIF(may!$F19:$AJ19,"p") -> 0 | AM19: =COUNTIF(may!$F19:$AJ19,"a") -> 0 | AN19: =COUNTIF(may!$F19:$AJ19,"l") -> 0 | AO19: 2 | AP19: 0 | AQ19: 31 | AR19: 0 | AS19: 24000 | AT19: 1200 | AU19: 774 | AV19: 3000 | AW19: 0 | AX19: 0
B20: P011 | C20: Name 11 | D20: 2019-01-11 | E20: Officer | AL20: =COUNTIF(may!$F20:$AJ20,"p") -> 0 | AM20: =COUNTIF(may!$F20:$AJ20,"a") -> 0 | AN20: =COUNTIF(may!$F20:$AJ20,"l") -> 0 | AO20: 2 | AP20: 0 | AQ20: 31 | AR20: 0 | AS20: 25000 | AT20: 1250 | AU20: 806 | AV20: 3000 | AW20: 0 | AX20: 0
B21: P012 | C21: Name 12 | D21: 2019-01-12 | E21: Manager | AL21: =COUNTIF(may!$F21:$AJ21,"p") -> 0 | AM21: =COUNTIF(may!$F21:$AJ21,"a") -> 0 | AN21: =COUNTIF(may!$F21:$AJ21,"l") -> 0 | AO21: 2 | AP21: 0 | AQ21: 31 | AR21: 0 | AS21: 26000 | AT21: 1300 | AU21: 839 | AV21: 3000 | AW21: 0 | AX21: 0
B22: P013 | C22: Name 13 | D22: 2019-01-13 | E22: Officer | AL22: =COUNTIF(may!$F22:$AJ22,"p") -> 0 | AM22: =COUNTIF(may!$F22:$AJ22,"a") -> 0 | AN22: =COUNTIF(may!$F22:$AJ22,"l") -> 0 | AO22: 2 | AP22: 0 | AQ22: 31 | AR22: 0 | AS22: 27000 | AT22: 1350 | AU22: 871 | AV22: 3000 | AW22: 0 | AX22: 0
B23: P014 | C23: Name 14 | D23: 2019-01-14 | E23: Clark | AL23: =COUNTIF(may!$F23:$AJ23,"p") -> 0 | AM23: =COUNTIF(may!$F23:$AJ23,"a") -> 0 | AN23: =COUNTIF(may!$F23:$AJ23,"l") -> 0 | AO23: 2 | AP23: 0 | AQ23: 31 | AR23: 0 | AS23: 28000 | AT23: 1400 | AU23: 903 | AV23: 3000 | AW23: 0 | AX23: 0
B24: P015 | C24: Name 15 | D24: 2019-01-15 | E24: Manager | AL24: =COUNTIF(may!$F24:$AJ24,"p") -> 0 | AM24: =COUNTIF(may!$F24:$AJ24,"a") -> 0 | AN24: =COUNTIF(may!$F24:$AJ24,"l") -> 0 | AO24: 2 | AP24: 0 | AQ24: 31 | AR24: 0 | AS24: 29000 | AT24: 1450 | AU24: 935 | AV24: 3000 | AW24: 0 | AX24: 0

Sheet jun
C2: Deepak EduWorld Pvt Ltd | AL2: Salary Calculatrion
B6: Attandance Sheet For Month | F6: =MID(CELL("filename",B2),FIND("]",CELL("filename",B2))+1,255) -> jun | K6: =DATEVALUE("1"&F6) -> 2019-06-01 | P6: To | Q6: =EOMONTH(K6,0) -> 2019-06-30
B8: Emp Id | C8: Name | D8: Date Of Joining | E8: Post | F8: =TEXT(F9,"ddd") -> Sat | G8: =TEXT(G9,"ddd") -> Sun | H8: =TEXT(H9,"ddd") -> Mon | I8: Tue | J8: Wed | K8: Thu | L8: Fri | M8: Sat | N8: Sun | O8: Mon | P8: Tue | Q8: Wed | R8: Thu | S8: Fri | T8: Sat | U8: Sun | V8: Mon | W8: Tue | X8: Wed | Y8: Thu | Z8: Fri | AA8: Sat | AB8: Sun | AC8: Mon | AD8: Tue | AE8: Wed | AF8: Thu | AG8: Fri | AH8: Sat | AI8: Sun | AL8: Presence | AM8: Absence | AN8: Leave Taken | AO8: Allowed Leave | AP8: Leave Charges | AQ8: Total Days of month | AR8: Total Payable Days | AS8: Basic Salary | AT8: PF 5% | AU8: Per Day Amount | AV8: HRA | AW8: Total Amount | AX8: In Hand Salary
F9: =K6 -> 2019-06-01 | G9: =IF(F9<$Q$6,F9+1,"") -> 2019-06-02 | H9: 2019-06-03 | I9: 2019-06-04 | J9: 2019-06-05 | K9: 2019-06-06 | L9: 2019-06-07 | M9: 2019-06-08 | N9: 2019-06-09 | O9: 2019-06-10 | P9: 2019-06-11 | Q9: 2019-06-12 | R9: 2019-06-13 | S9: 2019-06-14 | T9: 2019-06-15 | U9: 2019-06-16 | V9: 2019-06-17 | W9: 2019-06-18 | X9: 2019-06-19 | Y9: 2019-06-20 | Z9: 2019-06-21 | AA9: 2019-06-22 | AB9: 2019-06-23 | AC9: 2019-06-24 | AD9: 2019-06-25 | AE9: 2019-06-26 | AF9: 2019-06-27 | AG9: 2019-06-28 | AH9: 2019-06-29 | AI9: 2019-06-30
B10: P001 | C10: Name 1 | D10: 2019-01-01 | E10: Manager | AL10: =COUNTIF(may!$F10:$AJ10,"p") -> 0 | AM10: =COUNTIF(may!$F10:$AJ10,"a") -> 0 | AN10: =COUNTIF(may!$F10:$AJ10,"l") -> 0 | AO10: 2 | AP10: =IF(AN10>AO10,AN10-AO10,0) -> 0 | AQ10: =DAY($Q$6) -> 30 | AR10: =IF(AL10=0,0,COUNTIF($F$8:$AJ$8,"sun")+AL10) -> 0 | AS10: 15000 | AT10: =AS10*5% -> 750 | AU10: =AS10/AQ10 -> 500 | AV10: =IF(AS10>20000,3000,2000) -> 2000 | AW10: =AU10*AR10 -> 0 | AX10: =IF(AL10=0,0,AW10+AV10-AT10) -> 0
B11: P002 | C11: Name 2 | D11: 2019-01-02 | E11: Officer | AL11: =COUNTIF(may!$F11:$AJ11,"p") -> 0 | AM11: =COUNTIF(may!$F11:$AJ11,"a") -> 0 | AN11: =COUNTIF(may!$F11:$AJ11,"l") -> 0 | AO11: 2 | AP11: =IF(AN11>AO11,AN11-AO11,0) -> 0 | AQ11: 30 | AR11: =IF(AL11=0,0,COUNTIF($F$8:$AJ$8,"sun")+AL11) -> 0 | AS11: 16000 | AT11: =AS11*5% -> 800 | AU11: =AS11/AQ11 -> 533 | AV11: =IF(AS11>20000,3000,2000) -> 2000 | AW11: =AU11*AR11 -> 0 | AX11: =IF(AL11=0,0,AW11+AV11-AT11) -> 0
B12: P003 | C12: Name 3 | D12: 2019-01-03 | E12: Clark | AL12: =COUNTIF(may!$F12:$AJ12,"p") -> 0 | AM12: =COUNTIF(may!$F12:$AJ12,"a") -> 0 | AN12: =COUNTIF(may!$F12:$AJ12,"l") -> 0 | AO12: 2 | AP12: 0 | AQ12: 30 | AR12: 0 | AS12: 17000 | AT12: 850 | AU12: 567 | AV12: 2000 | AW12: 0 | AX12: 0
B13: P004 | C13: Name 4 | D13: 2019-01-04 | E13: Manager | AL13: =COUNTIF(may!$F13:$AJ13,"p") -> 0 | AM13: =COUNTIF(may!$F13:$AJ13,"a") -> 0 | AN13: =COUNTIF(may!$F13:$AJ13,"l") -> 0 | AO13: 2 | AP13: 0 | AQ13: 30 | AR13: 0 | AS13: 18000 | AT13: 900 | AU13: 600 | AV13: 2000 | AW13: 0 | AX13: 0
B14: P005 | C14: Name 5 | D14: 2019-01-05 | E14: Officer | AL14: =COUNTIF(may!$F14:$AJ14,"p") -> 0 | AM14: =COUNTIF(may!$F14:$AJ14,"a") -> 0 | AN14: =COUNTIF(may!$F14:$AJ14,"l") -> 0 | AO14: 2 | AP14: 0 | AQ14: 30 | AR14: 0 | AS14: 19000 | AT14: 950 | AU14: 633 | AV14: 2000 | AW14: 0 | AX14: 0
B15: P006 | C15: Name 6 | D15: 2019-01-06 | E15: Clark | AL15: =COUNTIF(may!$F15:$AJ15,"p") -> 0 | AM15: =COUNTIF(may!$F15:$AJ15,"a") -> 0 | AN15: =COUNTIF(may!$F15:$AJ15,"l") -> 0 | AO15: 2 | AP15: 0 | AQ15: 30 | AR15: 0 | AS15: 20000 | AT15: 1000 | AU15: 667 | AV15: 2000 | AW15: 0 | AX15: 0
B16: P007 | C16: Name 7 | D16: 2019-01-07 | E16: Manager | AL16: =COUNTIF(may!$F16:$AJ16,"p") -> 0 | AM16: =COUNTIF(may!$F16:$AJ16,"a") -> 0 | AN16: =COUNTIF(may!$F16:$AJ16,"l") -> 0 | AO16: 2 | AP16: 0 | AQ16: 30 | AR16: 0 | AS16: 21000 | AT16: 1050 | AU16: 700 | AV16: 3000 | AW16: 0 | AX16: 0
B17: P008 | C17: Name 8 | D17: 2019-01-08 | E17: Officer | AL17: =COUNTIF(may!$F17:$AJ17,"p") -> 0 | AM17: =COUNTIF(may!$F17:$AJ17,"a") -> 0 | AN17: =COUNTIF(may!$F17:$AJ17,"l") -> 0 | AO17: 2 | AP17: 0 | AQ17: 30 | AR17: 0 | AS17: 22000 | AT17: 1100 | AU17: 733 | AV17: 3000 | AW17: 0 | AX17: 0
B18: P009 | C18: Name 9 | D18: 2019-01-09 | E18: Clark | AL18: =COUNTIF(may!$F18:$AJ18,"p") -> 0 | AM18: =COUNTIF(may!$F18:$AJ18,"a") -> 0 | AN18: =COUNTIF(may!$F18:$AJ18,"l") -> 0 | AO18: 2 | AP18: 0 | AQ18: 30 | AR18: 0 | AS18: 23000 | AT18: 1150 | AU18: 767 | AV18: 3000 | AW18: 0 | AX18: 0
B19: P010 | C19: Name 10 | D19: 2019-01-10 | E19: Manager | AL19: =COUNTIF(may!$F19:$AJ19,"p") -> 0 | AM19: =COUNTIF(may!$F19:$AJ19,"a") -> 0 | AN19: =COUNTIF(may!$F19:$AJ19,"l") -> 0 | AO19: 2 | AP19: 0 | AQ19: 30 | AR19: 0 | AS19: 24000 | AT19: 1200 | AU19: 800 | AV19: 3000 | AW19: 0 | AX19: 0
B20: P011 | C20: Name 11 | D20: 2019-01-11 | E20: Officer | AL20: =COUNTIF(may!$F20:$AJ20,"p") -> 0 | AM20: =COUNTIF(may!$F20:$AJ20,"a") -> 0 | AN20: =COUNTIF(may!$F20:$AJ20,"l") -> 0 | AO20: 2 | AP20: 0 | AQ20: 30 | AR20: 0 | AS20: 25000 | AT20: 1250 | AU20: 833 | AV20: 3000 | AW20: 0 | AX20: 0
B21: P012 | C21: Name 12 | D21: 2019-01-12 | E21: Manager | AL21: =COUNTIF(may!$F21:$AJ21,"p") -> 0 | AM21: =COUNTIF(may!$F21:$AJ21,"a") -> 0 | AN21: =COUNTIF(may!$F21:$AJ21,"l") -> 0 | AO21: 2 | AP21: 0 | AQ21: 30 | AR21: 0 | AS21: 26000 | AT21: 1300 | AU21: 867 | AV21: 3000 | AW21: 0 | AX21: 0
B22: P013 | C22: Name 13 | D22: 2019-01-13 | E22: Officer | AL22: =COUNTIF(may!$F22:$AJ22,"p") -> 0 | AM22: =COUNTIF(may!$F22:$AJ22,"a") -> 0 | AN22: =COUNTIF(may!$F22:$AJ22,"l") -> 0 | AO22: 2 | AP22: 0 | AQ22: 30 | AR22: 0 | AS22: 27000 | AT22: 1350 | AU22: 900 | AV22: 3000 | AW22: 0 | AX22: 0
B23: P014 | C23: Name 14 | D23: 2019-01-14 | E23: Clark | AL23: =COUNTIF(may!$F23:$AJ23,"p") -> 0 | AM23: =COUNTIF(may!$F23:$AJ23,"a") -> 0 | AN23: =COUNTIF(may!$F23:$AJ23,"l") -> 0 | AO23: 2 | AP23: 0 | AQ23: 30 | AR23: 0 | AS23: 28000 | AT23: 1400 | AU23: 933 | AV23: 3000 | AW23: 0 | AX23: 0
B24: P015 | C24: Name 15 | D24: 2019-01-15 | E24: Manager | AL24: =COUNTIF(may!$F24:$AJ24,"p") -> 0 | AM24: =COUNTIF(may!$F24:$AJ24,"a") -> 0 | AN24: =COUNTIF(may!$F24:$AJ24,"l") -> 0 | AO24: 2 | AP24: 0 | AQ24: 30 | AR24: 0 | AS24: 29000 | AT24: 1450 | AU24: 967 | AV24: 3000 | AW24: 0 | AX24: 0

Sheet july
C2: Deepak EduWorld Pvt Ltd | AL2: Salary Calculatrion
B6: Attandance Sheet For Month | F6: =MID(CELL("filename",B2),FIND("]",CELL("filename",B2))+1,255) -> july | K6: =DATEVALUE("1"&F6) -> 2019-07-01 | P6: To | Q6: =EOMONTH(K6,0) -> 2019-07-31
B8: Emp Id | C8: Name | D8: Date Of Joining | E8: Post | F8: =TEXT(F9,"ddd") -> Mon | G8: =TEXT(G9,"ddd") -> Tue | H8: =TEXT(H9,"ddd") -> Wed | I8: Thu | J8: Fri | K8: Sat | L8: Sun | M8: Mon | N8: Tue | O8: Wed | P8: Thu | Q8: Fri | R8: Sat | S8: Sun | T8: Mon | U8: Tue | V8: Wed | W8: Thu | X8: Fri | Y8: Sat | Z8: Sun | AA8: Mon | AB8: Tue | AC8: Wed | AD8: Thu | AE8: Fri | AF8: Sat | AG8: Sun | AH8: Mon | AI8: Tue | AJ8: Wed | AL8: Presence | AM8: Absence | AN8: Leave Taken | AO8: Allowed Leave | AP8: Leave Charges | AQ8: Total Days of month | AR8: Total Payable Days | AS8: Basic Salary | AT8: PF 5% | AU8: Per Day Amount | AV8: HRA | AW8: Total Amount | AX8: In Hand Salary
F9: =K6 -> 2019-07-01 | G9: =IF(F9<$Q$6,F9+1,"") -> 2019-07-02 | H9: 2019-07-03 | I9: 2019-07-04 | J9: 2019-07-05 | K9: 2019-07-06 | L9: 2019-07-07 | M9: 2019-07-08 | N9: 2019-07-09 | O9: 2019-07-10 | P9: 2019-07-11 | Q9: 2019-07-12 | R9: 2019-07-13 | S9: 2019-07-14 | T9: 2019-07-15 | U9: 2019-07-16 | V9: 2019-07-17 | W9: 2019-07-18 | X9: 2019-07-19 | Y9: 2019-07-20 | Z9: 2019-07-21 | AA9: 2019-07-22 | AB9: 2019-07-23 | AC9: 2019-07-24 | AD9: 2019-07-25 | AE9: 2019-07-26 | AF9: 2019-07-27 | AG9: 2019-07-28 | AH9: 2019-07-29 | AI9: 2019-07-30 | AJ9: 2019-07-31
B10: P001 | C10: Name 1 | D10: 2019-01-01 | E10: Manager | AL10: =COUNTIF(may!$F10:$AJ10,"p") -> 0 | AM10: =COUNTIF(may!$F10:$AJ10,"a") -> 0 | AN10: =COUNTIF(may!$F10:$AJ10,"l") -> 0 | AO10: 2 | AP10: =IF(AN10>AO10,AN10-AO10,0) -> 0 | AQ10: =DAY($Q$6) -> 31 | AR10: =IF(AL10=0,0,COUNTIF($F$8:$AJ$8,"sun")+AL10) -> 0 | AS10: 15000 | AT10: =AS10*5% -> 750 | AU10: =AS10/AQ10 -> 484 | AV10: =IF(AS10>20000,3000,2000) -> 2000 | AW10: =AU10*AR10 -> 0 | AX10: =IF(AL10=0,0,AW10+AV10-AT10) -> 0
B11: P002 | C11: Name 2 | D11: 2019-01-02 | E11: Officer | AL11: =COUNTIF(may!$F11:$AJ11,"p") -> 0 | AM11: =COUNTIF(may!$F11:$AJ11,"a") -> 0 | AN11: =COUNTIF(may!$F11:$AJ11,"l") -> 0 | AO11: 2 | AP11: =IF(AN11>AO11,AN11-AO11,0) -> 0 | AQ11: 31 | AR11: =IF(AL11=0,0,COUNTIF($F$8:$AJ$8,"sun")+AL11) -> 0 | AS11: 16000 | AT11: =AS11*5% -> 800 | AU11: =AS11/AQ11 -> 516 | AV11: =IF(AS11>20000,3000,2000) -> 2000 | AW11: =AU11*AR11 -> 0 | AX11: =IF(AL11=0,0,AW11+AV11-AT11) -> 0
B12: P003 | C12: Name 3 | D12: 2019-01-03 | E12: Clark | AL12: =COUNTIF(may!$F12:$AJ12,"p") -> 0 | AM12: =COUNTIF(may!$F12:$AJ12,"a") -> 0 | AN12: =COUNTIF(may!$F12:$AJ12,"l") -> 0 | AO12: 2 | AP12: 0 | AQ12: 31 | AR12: 0 | AS12: 17000 | AT12: 850 | AU12: 548 | AV12: 2000 | AW12: 0 | AX12: 0
B13: P004 | C13: Name 4 | D13: 2019-01-04 | E13: Manager | AL13: =COUNTIF(may!$F13:$AJ13,"p") -> 0 | AM13: =COUNTIF(may!$F13:$AJ13,"a") -> 0 | AN13: =COUNTIF(may!$F13:$AJ13,"l") -> 0 | AO13: 2 | AP13: 0 | AQ13: 31 | AR13: 0 | AS13: 18000 | AT13: 900 | AU13: 581 | AV13: 2000 | AW13: 0 | AX13: 0
B14: P005 | C14: Name 5 | D14: 2019-01-05 | E14: Officer | AL14: =COUNTIF(may!$F14:$AJ14,"p") -> 0 | AM14: =COUNTIF(may!$F14:$AJ14,"a") -> 0 | AN14: =COUNTIF(may!$F14:$AJ14,"l") -> 0 | AO14: 2 | AP14: 0 | AQ14: 31 | AR14: 0 | AS14: 19000 | AT14: 950 | AU14: 613 | AV14: 2000 | AW14: 0 | AX14: 0
B15: P006 | C15: Name 6 | D15: 2019-01-06 | E15: Clark | AL15: =COUNTIF(may!$F15:$AJ15,"p") -> 0 | AM15: =COUNTIF(may!$F15:$AJ15,"a") -> 0 | AN15: =COUNTIF(may!$F15:$AJ15,"l") -> 0 | AO15: 2 | AP15: 0 | AQ15: 31 | AR15: 0 | AS15: 20000 | AT15: 1000 | AU15: 645 | AV15: 2000 | AW15: 0 | AX15: 0
B16: P007 | C16: Name 7 | D16: 2019-01-07 | E16: Manager | AL16: =COUNTIF(may!$F16:$AJ16,"p") -> 0 | AM16: =COUNTIF(may!$F16:$AJ16,"a") -> 0 | AN16: =COUNTIF(may!$F16:$AJ16,"l") -> 0 | AO16: 2 | AP16: 0 | AQ16: 31 | AR16: 0 | AS16: 21000 | AT16: 1050 | AU16: 677 | AV16: 3000 | AW16: 0 | AX16: 0
B17: P008 | C17: Name 8 | D17: 2019-01-08 | E17: Officer | AL17: =COUNTIF(may!$F17:$AJ17,"p") -> 0 | AM17: =COUNTIF(may!$F17:$AJ17,"a") -> 0 | AN17: =COUNTIF(may!$F17:$AJ17,"l") -> 0 | AO17: 2 | AP17: 0 | AQ17: 31 | AR17: 0 | AS17: 22000 | AT17: 1100 | AU17: 710 | AV17: 3000 | AW17: 0 | AX17: 0
B18: P009 | C18: Name 9 | D18: 2019-01-09 | E18: Clark | AL18: =COUNTIF(may!$F18:$AJ18,"p") -> 0 | AM18: =COUNTIF(may!$F18:$AJ18,"a") -> 0 | AN18: =COUNTIF(may!$F18:$AJ18,"l") -> 0 | AO18: 2 | AP18: 0 | AQ18: 31 | AR18: 0 | AS18: 23000 | AT18: 1150 | AU18: 742 | AV18: 3000 | AW18: 0 | AX18: 0
B19: P010 | C19: Name 10 | D19: 2019-01-10 | E19: Manager | AL19: =COUNTIF(may!$F19:$AJ19,"p") -> 0 | AM19: =COUNTIF(may!$F19:$AJ19,"a") -> 0 | AN19: =COUNTIF(may!$F19:$AJ19,"l") -> 0 | AO19: 2 | AP19: 0 | AQ19: 31 | AR19: 0 | AS19: 24000 | AT19: 1200 | AU19: 774 | AV19: 3000 | AW19: 0 | AX19: 0
B20: P011 | C20: Name 11 | D20: 2019-01-11 | E20: Officer | AL20: =COUNTIF(may!$F20:$AJ20,"p") -> 0 | AM20: =COUNTIF(may!$F20:$AJ20,"a") -> 0 | AN20: =COUNTIF(may!$F20:$AJ20,"l") -> 0 | AO20: 2 | AP20: 0 | AQ20: 31 | AR20: 0 | AS20: 25000 | AT20: 1250 | AU20: 806 | AV20: 3000 | AW20: 0 | AX20: 0
B21: P012 | C21: Name 12 | D21: 2019-01-12 | E21: Manager | AL21: =COUNTIF(may!$F21:$AJ21,"p") -> 0 | AM21: =COUNTIF(may!$F21:$AJ21,"a") -> 0 | AN21: =COUNTIF(may!$F21:$AJ21,"l") -> 0 | AO21: 2 | AP21: 0 | AQ21: 31 | AR21: 0 | AS21: 26000 | AT21: 1300 | AU21: 839 | AV21: 3000 | AW21: 0 | AX21: 0
B22: P013 | C22: Name 13 | D22: 2019-01-13 | E22: Officer | AL22: =COUNTIF(may!$F22:$AJ22,"p") -> 0 | AM22: =COUNTIF(may!$F22:$AJ22,"a") -> 0 | AN22: =COUNTIF(may!$F22:$AJ22,"l") -> 0 | AO22: 2 | AP22: 0 | AQ22: 31 | AR22: 0 | AS22: 27000 | AT22: 1350 | AU22: 871 | AV22: 3000 | AW22: 0 | AX22: 0
B23: P014 | C23: Name 14 | D23: 2019-01-14 | E23: Clark | AL23: =COUNTIF(may!$F23:$AJ23,"p") -> 0 | AM23: =COUNTIF(may!$F23:$AJ23,"a") -> 0 | AN23: =COUNTIF(may!$F23:$AJ23,"l") -> 0 | AO23: 2 | AP23: 0 | AQ23: 31 | AR23: 0 | AS23: 28000 | AT23: 1400 | AU23: 903 | AV23: 3000 | AW23: 0 | AX23: 0
B24: P015 | C24: Name 15 | D24: 2019-01-15 | E24: Manager | AL24: =COUNTIF(may!$F24:$AJ24,"p") -> 0 | AM24: =COUNTIF(may!$F24:$AJ24,"a") -> 0 | AN24: =COUNTIF(may!$F24:$AJ24,"l") -> 0 | AO24: 2 | AP24: 0 | AQ24: 31 | AR24: 0 | AS24: 29000 | AT24: 1450 | AU24: 935 | AV24: 3000 | AW24: 0 | AX24: 0

Sheet aug
C2: Deepak EduWorld Pvt Ltd | AL2: Salary Calculatrion
B6: Attandance Sheet For Month | F6: =MID(CELL("filename",B2),FIND("]",CELL("filename",B2))+1,255) -> aug | K6: =DATEVALUE("1"&F6) -> 2019-08-01 | P6: To | Q6: =EOMONTH(K6,0) -> 2019-08-31
B8: Emp Id | C8: Name | D8: Date Of Joining | E8: Post | F8: =TEXT(F9,"ddd") -> Thu | G8: =TEXT(G9,"ddd") -> Fri | H8: =TEXT(H9,"ddd") -> Sat | I8: Sun | J8: Mon | K8: Tue | L8: Wed | M8: Thu | N8: Fri | O8: Sat | P8: Sun | Q8: Mon | R8: Tue | S8: Wed | T8: Thu | U8: Fri | V8: Sat | W8: Sun | X8: Mon | Y8: Tue | Z8: Wed | AA8: Thu | AB8: Fri | AC8: Sat | AD8: Sun | AE8: Mon | AF8: Tue | AG8: Wed | AH8: Thu | AI8: Fri | AJ8: Sat | AL8: Presence | AM8: Absence | AN8: Leave Taken | AO8: Allowed Leave | AP8: Leave Charges | AQ8: Total Days of month | AR8: Total Payable Days | AS8: Basic Salary | AT8: PF 5% | AU8: Per Day Amount | AV8: HRA | AW8: Total Amount | AX8: In Hand Salary
F9: =K6 -> 2019-08-01 | G9: =IF(F9<$Q$6,F9+1,"") -> 2019-08-02 | H9: 2019-08-03 | I9: 2019-08-04 | J9: 2019-08-05 | K9: 2019-08-06 | L9: 2019-08-07 | M9: 2019-08-08 | N9: 2019-08-09 | O9: 2019-08-10 | P9: 2019-08-11 | Q9: 2019-08-12 | R9: 2019-08-13 | S9: 2019-08-14 | T9: 2019-08-15 | U9: 2019-08-16 | V9: 2019-08-17 | W9: 2019-08-18 | X9: 2019-08-19 | Y9: 2019-08-20 | Z9: 2019-08-21 | AA9: 2019-08-22 | AB9: 2019-08-23 | AC9: 2019-08-24 | AD9: 2019-08-25 | AE9: 2019-08-26 | AF9: 2019-08-27 | AG9: 2019-08-28 | AH9: 2019-08-29 | AI9: 2019-08-30 | AJ9: 2019-08-31
B10: P001 | C10: Name 1 | D10: 2019-01-01 | E10: Manager | AL10: =COUNTIF(may!$F10:$AJ10,"p") -> 0 | AM10: =COUNTIF(may!$F10:$AJ10,"a") -> 0 | AN10: =COUNTIF(may!$F10:$AJ10,"l") -> 0 | AO10: 2 | AP10: =IF(AN10>AO10,AN10-AO10,0) -> 0 | AQ10: =DAY($Q$6) -> 31 | AR10: =IF(AL10=0,0,COUNTIF($F$8:$AJ$8,"sun")+AL10) -> 0 | AS10: 15000 | AT10: =AS10*5% -> 750 | AU10: =AS10/AQ10 -> 484 | AV10: =IF(AS10>20000,3000,2000) -> 2000 | AW10: =AU10*AR10 -> 0 | AX10: =IF(AL10=0,0,AW10+AV10-AT10) -> 0
B11: P002 | C11: Name 2 | D11: 2019-01-02 | E11: Officer | AL11: =COUNTIF(may!$F11:$AJ11,"p") -> 0 | AM11: =COUNTIF(may!$F11:$AJ11,"a") -> 0 | AN11: =COUNTIF(may!$F11:$AJ11,"l") -> 0 | AO11: 2 | AP11: =IF(AN11>AO11,AN11-AO11,0) -> 0 | AQ11: 31 | AR11: =IF(AL11=0,0,COUNTIF($F$8:$AJ$8,"sun")+AL11) -> 0 | AS11: 16000 | AT11: =AS11*5% -> 800 | AU11: =AS11/AQ11 -> 516 | AV11: =IF(AS11>20000,3000,2000) -> 2000 | AW11: =AU11*AR11 -> 0 | AX11: =IF(AL11=0,0,AW11+AV11-AT11) -> 0
B12: P003 | C12: Name 3 | D12: 2019-01-03 | E12: Clark | AL12: =COUNTIF(may!$F12:$AJ12,"p") -> 0 | AM12: =COUNTIF(may!$F12:$AJ12,"a") -> 0 | AN12: =COUNTIF(may!$F12:$AJ12,"l") -> 0 | AO12: 2 | AP12: 0 | AQ12: 31 | AR12: 0 | AS12: 17000 | AT12: 850 | AU12: 548 | AV12: 2000 | AW12: 0 | AX12: 0
B13: P004 | C13: Name 4 | D13: 2019-01-04 | E13: Manager | AL13: =COUNTIF(may!$F13:$AJ13,"p") -> 0 | AM13: =COUNTIF(may!$F13:$AJ13,"a") -> 0 | AN13: =COUNTIF(may!$F13:$AJ13,"l") -> 0 | AO13: 2 | AP13: 0 | AQ13: 31 | AR13: 0 | AS13: 18000 | AT13: 900 | AU13: 581 | AV13: 2000 | AW13: 0 | AX13: 0
B14: P005 | C14: Name 5 | D14: 2019-01-05 | E14: Officer | AL14: =COUNTIF(may!$F14:$AJ14,"p") -> 0 | AM14: =COUNTIF(may!$F14:$AJ14,"a") -> 0 | AN14: =COUNTIF(may!$F14:$AJ14,"l") -> 0 | AO14: 2 | AP14: 0 | AQ14: 31 | AR14: 0 | AS14: 19000 | AT14: 950 | AU14: 613 | AV14: 2000 | AW14: 0 | AX14: 0
B15: P006 | C15: Name 6 | D15: 2019-01-06 | E15: Clark | AL15: =COUNTIF(may!$F15:$AJ15,"p") -> 0 | AM15: =COUNTIF(may!$F15:$AJ15,"a") -> 0 | AN15: =COUNTIF(may!$F15:$AJ15,"l") -> 0 | AO15: 2 | AP15: 0 | AQ15: 31 | AR15: 0 | AS15: 20000 | AT15: 1000 | AU15: 645 | AV15: 2000 | AW15: 0 | AX15: 0
B16: P007 | C16: Name 7 | D16: 2019-01-07 | E16: Manager | AL16: =COUNTIF(may!$F16:$AJ16,"p") -> 0 | AM16: =COUNTIF(may!$F16:$AJ16,"a") -> 0 | AN16: =COUNTIF(may!$F16:$AJ16,"l") -> 0 | AO16: 2 | AP16: 0 | AQ16: 31 | AR16: 0 | AS16: 21000 | AT16: 1050 | AU16: 677 | AV16: 3000 | AW16: 0 | AX16: 0
B17: P008 | C17: Name 8 | D17: 2019-01-08 | E17: Officer | AL17: =COUNTIF(may!$F17:$AJ17,"p") -> 0 | AM17: =COUNTIF(may!$F17:$AJ17,"a") -> 0 | AN17: =COUNTIF(may!$F17:$AJ17,"l") -> 0 | AO17: 2 | AP17: 0 | AQ17: 31 | AR17: 0 | AS17: 22000 | AT17: 1100 | AU17: 710 | AV17: 3000 | AW17: 0 | AX17: 0
B18: P009 | C18: Name 9 | D18: 2019-01-09 | E18: Clark | AL18: =COUNTIF(may!$F18:$AJ18,"p") -> 0 | AM18: =COUNTIF(may!$F18:$AJ18,"a") -> 0 | AN18: =COUNTIF(may!$F18:$AJ18,"l") -> 0 | AO18: 2 | AP18: 0 | AQ18: 31 | AR18: 0 | AS18: 23000 | AT18: 1150 | AU18: 742 | AV18: 3000 | AW18: 0 | AX18: 0
B19: P010 | C19: Name 10 | D19: 2019-01-10 | E19: Manager | AL19: =COUNTIF(may!$F19:$AJ19,"p") -> 0 | AM19: =COUNTIF(may!$F19:$AJ19,"a") -> 0 | AN19: =COUNTIF(may!$F19:$AJ19,"l") -> 0 | AO19: 2 | AP19: 0 | AQ19: 31 | AR19: 0 | AS19: 24000 | AT19: 1200 | AU19: 774 | AV19: 3000 | AW19: 0 | AX19: 0
B20: P011 | C20: Name 11 | D20: 2019-01-11 | E20: Officer | AL20: =COUNTIF(may!$F20:$AJ20,"p") -> 0 | AM20: =COUNTIF(may!$F20:$AJ20,"a") -> 0 | AN20: =COUNTIF(may!$F20:$AJ20,"l") -> 0 | AO20: 2 | AP20: 0 | AQ20: 31 | AR20: 0 | AS20: 25000 | AT20: 1250 | AU20: 806 | AV20: 3000 | AW20: 0 | AX20: 0
B21: P012 | C21: Name 12 | D21: 2019-01-12 | E21: Manager | AL21: =COUNTIF(may!$F21:$AJ21,"p") -> 0 | AM21: =COUNTIF(may!$F21:$AJ21,"a") -> 0 | AN21: =COUNTIF(may!$F21:$AJ21,"l") -> 0 | AO21: 2 | AP21: 0 | AQ21: 31 | AR21: 0 | AS21: 26000 | AT21: 1300 | AU21: 839 | AV21: 3000 | AW21: 0 | AX21: 0
B22: P013 | C22: Name 13 | D22: 2019-01-13 | E22: Officer | AL22: =COUNTIF(may!$F22:$AJ22,"p") -> 0 | AM22: =COUNTIF(may!$F22:$AJ22,"a") -> 0 | AN22: =COUNTIF(may!$F22:$AJ22,"l") -> 0 | AO22: 2 | AP22: 0 | AQ22: 31 | AR22: 0 | AS22: 27000 | AT22: 1350 | AU22: 871 | AV22: 3000 | AW22: 0 | AX22: 0
B23: P014 | C23: Name 14 | D23: 2019-01-14 | E23: Clark | AL23: =COUNTIF(may!$F23:$AJ23,"p") -> 0 | AM23: =COUNTIF(may!$F23:$AJ23,"a") -> 0 | AN23: =COUNTIF(may!$F23:$AJ23,"l") -> 0 | AO23: 2 | AP23: 0 | AQ23: 31 | AR23: 0 | AS23: 28000 | AT23: 1400 | AU23: 903 | AV23: 3000 | AW23: 0 | AX23: 0
B24: P015 | C24: Name 15 | D24: 2019-01-15 | E24: Manager | AL24: =COUNTIF(may!$F24:$AJ24,"p") -> 0 | AM24: =COUNTIF(may!$F24:$AJ24,"a") -> 0 | AN24: =COUNTIF(may!$F24:$AJ24,"l") -> 0 | AO24: 2 | AP24: 0 | AQ24: 31 | AR24: 0 | AS24: 29000 | AT24: 1450 | AU24: 935 | AV24: 3000 | AW24: 0 | AX24: 0

Sheet sep
C2: Deepak EduWorld Pvt Ltd | AL2: Salary Calculatrion
B6: Attandance Sheet For Month | F6: =MID(CELL("filename",B2),FIND("]",CELL("filename",B2))+1,255) -> sep | K6: =DATEVALUE("1"&F6) -> 2019-09-01 | P6: To | Q6: =EOMONTH(K6,0) -> 2019-09-30
B8: Emp Id | C8: Name | D8: Date Of Joining | E8: Post | F8: =TEXT(F9,"ddd") -> Sun | G8: =TEXT(G9,"ddd") -> Mon | H8: =TEXT(H9,"ddd") -> Tue | I8: Wed | J8: Thu | K8: Fri | L8: Sat | M8: Sun | N8: Mon | O8: Tue | P8: Wed | Q8: Thu | R8: Fri | S8: Sat | T8: Sun | U8: Mon | V8: Tue | W8: Wed | X8: Thu | Y8: Fri | Z8: Sat | AA8: Sun | AB8: Mon | AC8: Tue | AD8: Wed | AE8: Thu | AF8: Fri | AG8: Sat | AH8: Sun | AI8: Mon | AL8: Presence | AM8: Absence | AN8: Leave Taken | AO8: Allowed Leave | AP8: Leave Charges | AQ8: Total Days of month | AR8: Total Payable Days | AS8: Basic Salary | AT8: PF 5% | AU8: Per Day Amount | AV8: HRA | AW8: Total Amount | AX8: In Hand Salary
F9: =K6 -> 2019-09-01 | G9: =IF(F9<$Q$6,F9+1,"") -> 2019-09-02 | H9: 2019-09-03 | I9: 2019-09-04 | J9: 2019-09-05 | K9: 2019-09-06 | L9: 2019-09-07 | M9: 2019-09-08 | N9: 2019-09-09 | O9: 2019-09-10 | P9: 2019-09-11 | Q9: 2019-09-12 | R9: 2019-09-13 | S9: 2019-09-14 | T9: 2019-09-15 | U9: 2019-09-16 | V9: 2019-09-17 | W9: 2019-09-18 | X9: 2019-09-19 | Y9: 2019-09-20 | Z9: 2019-09-21 | AA9: 2019-09-22 | AB9: 2019-09-23 | AC9: 2019-09-24 | AD9: 2019-09-25 | AE9: 2019-09-26 | AF9: 2019-09-27 | AG9: 2019-09-28 | AH9: 2019-09-29 | AI9: 2019-09-30
B10: P001 | C10: Name 1 | D10: 2019-01-01 | E10: Manager | AL10: =COUNTIF(may!$F10:$AJ10,"p") -> 0 | AM10: =COUNTIF(may!$F10:$AJ10,"a") -> 0 | AN10: =COUNTIF(may!$F10:$AJ10,"l") -> 0 | AO10: 2 | AP10: =IF(AN10>AO10,AN10-AO10,0) -> 0 | AQ10: =DAY($Q$6) -> 30 | AR10: =IF(AL10=0,0,COUNTIF($F$8:$AJ$8,"sun")+AL10) -> 0 | AS10: 15000 | AT10: =AS10*5% -> 750 | AU10: =AS10/AQ10 -> 500 | AV10: =IF(AS10>20000,3000,2000) -> 2000 | AW10: =AU10*AR10 -> 0 | AX10: =IF(AL10=0,0,AW10+AV10-AT10) -> 0
B11: P002 | C11: Name 2 | D11: 2019-01-02 | E11: Officer | AL11: =COUNTIF(may!$F11:$AJ11,"p") -> 0 | AM11: =COUNTIF(may!$F11:$AJ11,"a") -> 0 | AN11: =COUNTIF(may!$F11:$AJ11,"l") -> 0 | AO11: 2 | AP11: =IF(AN11>AO11,AN11-AO11,0) -> 0 | AQ11: 30 | AR11: =IF(AL11=0,0,COUNTIF($F$8:$AJ$8,"sun")+AL11) -> 0 | AS11: 16000 | AT11: =AS11*5% -> 800 | AU11: =AS11/AQ11 -> 533 | AV11: =IF(AS11>20000,3000,2000) -> 2000 | AW11: =AU11*AR11 -> 0 | AX11: =IF(AL11=0,0,AW11+AV11-AT11) -> 0
B12: P003 | C12: Name 3 | D12: 2019-01-03 | E12: Clark | AL12: =COUNTIF(may!$F12:$AJ12,"p") -> 0 | AM12: =COUNTIF(may!$F12:$AJ12,"a") -> 0 | AN12: =COUNTIF(may!$F12:$AJ12,"l") -> 0 | AO12: 2 | AP12: 0 | AQ12: 30 | AR12: 0 | AS12: 17000 | AT12: 850 | AU12: 567 | AV12: 2000 | AW12: 0 | AX12: 0
B13: P004 | C13: Name 4 | D13: 2019-01-04 | E13: Manager | AL13: =COUNTIF(may!$F13:$AJ13,"p") -> 0 | AM13: =COUNTIF(may!$F13:$AJ13,"a") -> 0 | AN13: =COUNTIF(may!$F13:$AJ13,"l") -> 0 | AO13: 2 | AP13: 0 | AQ13: 30 | AR13: 0 | AS13: 18000 | AT13: 900 | AU13: 600 | AV13: 2000 | AW13: 0 | AX13: 0
B14: P005 | C14: Name 5 | D14: 2019-01-05 | E14: Officer | AL14: =COUNTIF(may!$F14:$AJ14,"p") -> 0 | AM14: =COUNTIF(may!$F14:$AJ14,"a") -> 0 | AN14: =COUNTIF(may!$F14:$AJ14,"l") -> 0 | AO14: 2 | AP14: 0 | AQ14: 30 | AR14: 0 | AS14: 19000 | AT14: 950 | AU14: 633 | AV14: 2000 | AW14: 0 | AX14: 0
B15: P006 | C15: Name 6 | D15: 2019-01-06 | E15: Clark | AL15: =COUNTIF(may!$F15:$AJ15,"p") -> 0 | AM15: =COUNTIF(may!$F15:$AJ15,"a") -> 0 | AN15: =COUNTIF(may!$F15:$AJ15,"l") -> 0 | AO15: 2 | AP15: 0 | AQ15: 30 | AR15: 0 | AS15: 20000 | AT15: 1000 | AU15: 667 | AV15: 2000 | AW15: 0 | AX15: 0
B16: P007 | C16: Name 7 | D16: 2019-01-07 | E16: Manager | AL16: =COUNTIF(may!$F16:$AJ16,"p") -> 0 | AM16: =COUNTIF(may!$F16:$AJ16,"a") -> 0 | AN16: =COUNTIF(may!$F16:$AJ16,"l") -> 0 | AO16: 2 | AP16: 0 | AQ16: 30 | AR16: 0 | AS16: 21000 | AT16: 1050 | AU16: 700 | AV16: 3000 | AW16: 0 | AX16: 0
B17: P008 | C17: Name 8 | D17: 2019-01-08 | E17: Officer | AL17: =COUNTIF(may!$F17:$AJ17,"p") -> 0 | AM17: =COUNTIF(may!$F17:$AJ17,"a") -> 0 | AN17: =COUNTIF(may!$F17:$AJ17,"l") -> 0 | AO17: 2 | AP17: 0 | AQ17: 30 | AR17: 0 | AS17: 22000 | AT17: 1100 | AU17: 733 | AV17: 3000 | AW17: 0 | AX17: 0
B18: P009 | C18: Name 9 | D18: 2019-01-09 | E18: Clark | AL18: =COUNTIF(may!$F18:$AJ18,"p") -> 0 | AM18: =COUNTIF(may!$F18:$AJ18,"a") -> 0 | AN18: =COUNTIF(may!$F18:$AJ18,"l") -> 0 | AO18: 2 | AP18: 0 | AQ18: 30 | AR18: 0 | AS18: 23000 | AT18: 1150 | AU18: 767 | AV18: 3000 | AW18: 0 | AX18: 0
B19: P010 | C19: Name 10 | D19: 2019-01-10 | E19: Manager | AL19: =COUNTIF(may!$F19:$AJ19,"p") -> 0 | AM19: =COUNTIF(may!$F19:$AJ19,"a") -> 0 | AN19: =COUNTIF(may!$F19:$AJ19,"l") -> 0 | AO19: 2 | AP19: 0 | AQ19: 30 | AR19: 0 | AS19: 24000 | AT19: 1200 | AU19: 800 | AV19: 3000 | AW19: 0 | AX19: 0
B20: P011 | C20: Name 11 | D20: 2019-01-11 | E20: Officer | AL20: =COUNTIF(may!$F20:$AJ20,"p") -> 0 | AM20: =COUNTIF(may!$F20:$AJ20,"a") -> 0 | AN20: =COUNTIF(may!$F20:$AJ20,"l") -> 0 | AO20: 2 | AP20: 0 | AQ20: 30 | AR20: 0 | AS20: 25000 | AT20: 1250 | AU20: 833 | AV20: 3000 | AW20: 0 | AX20: 0
B21: P012 | C21: Name 12 | D21: 2019-01-12 | E21: Manager | AL21: =COUNTIF(may!$F21:$AJ21,"p") -> 0 | AM21: =COUNTIF(may!$F21:$AJ21,"a") -> 0 | AN21: =COUNTIF(may!$F21:$AJ21,"l") -> 0 | AO21: 2 | AP21: 0 | AQ21: 30 | AR21: 0 | AS21: 26000 | AT21: 1300 | AU21: 867 | AV21: 3000 | AW21: 0 | AX21: 0
B22: P013 | C22: Name 13 | D22: 2019-01-13 | E22: Officer | AL22: =COUNTIF(may!$F22:$AJ22,"p") -> 0 | AM22: =COUNTIF(may!$F22:$AJ22,"a") -> 0 | AN22: =COUNTIF(may!$F22:$AJ22,"l") -> 0 | AO22: 2 | AP22: 0 | AQ22: 30 | AR22: 0 | AS22: 27000 | AT22: 1350 | AU22: 900 | AV22: 3000 | AW22: 0 | AX22: 0
B23: P014 | C23: Name 14 | D23: 2019-01-14 | E23: Clark | AL23: =COUNTIF(may!$F23:$AJ23,"p") -> 0 | AM23: =COUNTIF(may!$F23:$AJ23,"a") -> 0 | AN23: =COUNTIF(may!$F23:$AJ23,"l") -> 0 | AO23: 2 | AP23: 0 | AQ23: 30 | AR23: 0 | AS23: 28000 | AT23: 1400 | AU23: 933 | AV23: 3000 | AW23: 0 | AX23: 0
B24: P015 | C24: Name 15 | D24: 2019-01-15 | E24: Manager | AL24: =COUNTIF(may!$F24:$AJ24,"p") -> 0 | AM24: =COUNTIF(may!$F24:$AJ24,"a") -> 0 | AN24: =COUNTIF(may!$F24:$AJ24,"l") -> 0 | AO24: 2 | AP24: 0 | AQ24: 30 | AR24: 0 | AS24: 29000 | AT24: 1450 | AU24: 967 | AV24: 3000 | AW24: 0 | AX24: 0

Sheet oct
C2: Deepak EduWorld Pvt Ltd | AL2: Salary Calculatrion
B6: Attandance Sheet For Month | F6: =MID(CELL("filename",B2),FIND("]",CELL("filename",B2))+1,255) -> oct | K6: =DATEVALUE("1"&F6) -> 2019-10-01 | P6: To | Q6: =EOMONTH(K6,0) -> 2019-10-31
B8: Emp Id | C8: Name | D8: Date Of Joining | E8: Post | F8: =TEXT(F9,"ddd") -> Tue | G8: =TEXT(G9,"ddd") -> Wed | H8: =TEXT(H9,"ddd") -> Thu | I8: Fri | J8: Sat | K8: Sun | L8: Mon | M8: Tue | N8: Wed | O8: Thu | P8: Fri | Q8: Sat | R8: Sun | S8: Mon | T8: Tue | U8: Wed | V8: Thu | W8: Fri | X8: Sat | Y8: Sun | Z8: Mon | AA8: Tue | AB8: Wed | AC8: Thu | AD8: Fri | AE8: Sat | AF8: Sun | AG8: Mon | AH8: Tue | AI8: Wed | AJ8: Thu | AL8: Presence | AM8: Absence | AN8: Leave Taken | AO8: Allowed Leave | AP8: Leave Charges | AQ8: Total Days of month | AR8: Total Payable Days | AS8: Basic Salary | AT8: PF 5% | AU8: Per Day Amount | AV8: HRA | AW8: Total Amount | AX8: In Hand Salary
F9: =K6 -> 2019-10-01 | G9: =IF(F9<$Q$6,F9+1,"") -> 2019-10-02 | H9: 2019-10-03 | I9: 2019-10-04 | J9: 2019-10-05 | K9: 2019-10-06 | L9: 2019-10-07 | M9: 2019-10-08 | N9: 2019-10-09 | O9: 2019-10-10 | P9: 2019-10-11 | Q9: 2019-10-12 | R9: 2019-10-13 | S9: 2019-10-14 | T9: 2019-10-15 | U9: 2019-10-16 | V9: 2019-10-17 | W9: 2019-10-18 | X9: 2019-10-19 | Y9: 2019-10-20 | Z9: 2019-10-21 | AA9: 2019-10-22 | AB9: 2019-10-23 | AC9: 2019-10-24 | AD9: 2019-10-25 | AE9: 2019-10-26 | AF9: 2019-10-27 | AG9: 2019-10-28 | AH9: 2019-10-29 | AI9: 2019-10-30 | AJ9: 2019-10-31
B10: P001 | C10: Name 1 | D10: 2019-01-01 | E10: Manager | AL10: =COUNTIF(may!$F10:$AJ10,"p") -> 0 | AM10: =COUNTIF(may!$F10:$AJ10,"a") -> 0 | AN10: =COUNTIF(may!$F10:$AJ10,"l") -> 0 | AO10: 2 | AP10: =IF(AN10>AO10,AN10-AO10,0) -> 0 | AQ10: =DAY($Q$6) -> 31 | AR10: =IF(AL10=0,0,COUNTIF($F$8:$AJ$8,"sun")+AL10) -> 0 | AS10: 15000 | AT10: =AS10*5% -> 750 | AU10: =AS10/AQ10 -> 484 | AV10: =IF(AS10>20000,3000,2000) -> 2000 | AW10: =AU10*AR10 -> 0 | AX10: =IF(AL10=0,0,AW10+AV10-AT10) -> 0
B11: P002 | C11: Name 2 | D11: 2019-01-02 | E11: Officer | AL11: =COUNTIF(may!$F11:$AJ11,"p") -> 0 | AM11: =COUNTIF(may!$F11:$AJ11,"a") -> 0 | AN11: =COUNTIF(may!$F11:$AJ11,"l") -> 0 | AO11: 2 | AP11: =IF(AN11>AO11,AN11-AO11,0) -> 0 | AQ11: 31 | AR11: =IF(AL11=0,0,COUNTIF($F$8:$AJ$8,"sun")+AL11) -> 0 | AS11: 16000 | AT11: =AS11*5% -> 800 | AU11: =AS11/AQ11 -> 516 | AV11: =IF(AS11>20000,3000,2000) -> 2000 | AW11: =AU11*AR11 -> 0 | AX11: =IF(AL11=0,0,AW11+AV11-AT11) -> 0
B12: P003 | C12: Name 3 | D12: 2019-01-03 | E12: Clark | AL12: =COUNTIF(may!$F12:$AJ12,"p") -> 0 | AM12: =COUNTIF(may!$F12:$AJ12,"a") -> 0 | AN12: =COUNTIF(may!$F12:$AJ12,"l") -> 0 | AO12: 2 | AP12: 0 | AQ12: 31 | AR12: 0 | AS12: 17000 | AT12: 850 | AU12: 548 | AV12: 2000 | AW12: 0 | AX12: 0
B13: P004 | C13: Name 4 | D13: 2019-01-04 | E13: Manager | AL13: =COUNTIF(may!$F13:$AJ13,"p") -> 0 | AM13: =COUNTIF(may!$F13:$AJ13,"a") -> 0 | AN13: =COUNTIF(may!$F13:$AJ13,"l") -> 0 | AO13: 2 | AP13: 0 | AQ13: 31 | AR13: 0 | AS13: 18000 | AT13: 900 | AU13: 581 | AV13: 2000 | AW13: 0 | AX13: 0
B14: P005 | C14: Name 5 | D14: 2019-01-05 | E14: Officer | AL14: =COUNTIF(may!$F14:$AJ14,"p") -> 0 | AM14: =COUNTIF(may!$F14:$AJ14,"a") -> 0 | AN14: =COUNTIF(may!$F14:$AJ14,"l") -> 0 | AO14: 2 | AP14: 0 | AQ14: 31 | AR14: 0 | AS14: 19000 | AT14: 950 | AU14: 613 | AV14: 2000 | AW14: 0 | AX14: 0
B15: P006 | C15: Name 6 | D15: 2019-01-06 | E15: Clark | AL15: =COUNTIF(may!$F15:$AJ15,"p") -> 0 | AM15: =COUNTIF(may!$F15:$AJ15,"a") -> 0 | AN15: =COUNTIF(may!$F15:$AJ15,"l") -> 0 | AO15: 2 | AP15: 0 | AQ15: 31 | AR15: 0 | AS15: 20000 | AT15: 1000 | AU15: 645 | AV15: 2000 | AW15: 0 | AX15: 0
B16: P007 | C16: Name 7 | D16: 2019-01-07 | E16: Manager | AL16: =COUNTIF(may!$F16:$AJ16,"p") -> 0 | AM16: =COUNTIF(may!$F16:$AJ16,"a") -> 0 | AN16: =COUNTIF(may!$F16:$AJ16,"l") -> 0 | AO16: 2 | AP16: 0 | AQ16: 31 | AR16: 0 | AS16: 21000 | AT16: 1050 | AU16: 677 | AV16: 3000 | AW16: 0 | AX16: 0
B17: P008 | C17: Name 8 | D17: 2019-01-08 | E17: Officer | AL17: =COUNTIF(may!$F17:$AJ17,"p") -> 0 | AM17: =COUNTIF(may!$F17:$AJ17,"a") -> 0 | AN17: =COUNTIF(may!$F17:$AJ17,"l") -> 0 | AO17: 2 | AP17: 0 | AQ17: 31 | AR17: 0 | AS17: 22000 | AT17: 1100 | AU17: 710 | AV17: 3000 | AW17: 0 | AX17: 0
B18: P009 | C18: Name 9 | D18: 2019-01-09 | E18: Clark | AL18: =COUNTIF(may!$F18:$AJ18,"p") -> 0 | AM18: =COUNTIF(may!$F18:$AJ18,"a") -> 0 | AN18: =COUNTIF(may!$F18:$AJ18,"l") -> 0 | AO18: 2 | AP18: 0 | AQ18: 31 | AR18: 0 | AS18: 23000 | AT18: 1150 | AU18: 742 | AV18: 3000 | AW18: 0 | AX18: 0
B19: P010 | C19: Name 10 | D19: 2019-01-10 | E19: Manager | AL19: =COUNTIF(may!$F19:$AJ19,"p") -> 0 | AM19: =COUNTIF(may!$F19:$AJ19,"a") -> 0 | AN19: =COUNTIF(may!$F19:$AJ19,"l") -> 0 | AO19: 2 | AP19: 0 | AQ19: 31 | AR19: 0 | AS19: 24000 | AT19: 1200 | AU19: 774 | AV19: 3000 | AW19: 0 | AX19: 0
B20: P011 | C20: Name 11 | D20: 2019-01-11 | E20: Officer | AL20: =COUNTIF(may!$F20:$AJ20,"p") -> 0 | AM20: =COUNTIF(may!$F20:$AJ20,"a") -> 0 | AN20: =COUNTIF(may!$F20:$AJ20,"l") -> 0 | AO20: 2 | AP20: 0 | AQ20: 31 | AR20: 0 | AS20: 25000 | AT20: 1250 | AU20: 806 | AV20: 3000 | AW20: 0 | AX20: 0
B21: P012 | C21: Name 12 | D21: 2019-01-12 | E21: Manager | AL21: =COUNTIF(may!$F21:$AJ21,"p") -> 0 | AM21: =COUNTIF(may!$F21:$AJ21,"a") -> 0 | AN21: =COUNTIF(may!$F21:$AJ21,"l") -> 0 | AO21: 2 | AP21: 0 | AQ21: 31 | AR21: 0 | AS21: 26000 | AT21: 1300 | AU21: 839 | AV21: 3000 | AW21: 0 | AX21: 0
B22: P013 | C22: Name 13 | D22: 2019-01-13 | E22: Officer | AL22: =COUNTIF(may!$F22:$AJ22,"p") -> 0 | AM22: =COUNTIF(may!$F22:$AJ22,"a") -> 0 | AN22: =COUNTIF(may!$F22:$AJ22,"l") -> 0 | AO22: 2 | AP22: 0 | AQ22: 31 | AR22: 0 | AS22: 27000 | AT22: 1350 | AU22: 871 | AV22: 3000 | AW22: 0 | AX22: 0
B23: P014 | C23: Name 14 | D23: 2019-01-14 | E23: Clark | AL23: =COUNTIF(may!$F23:$AJ23,"p") -> 0 | AM23: =COUNTIF(may!$F23:$AJ23,"a") -> 0 | AN23: =COUNTIF(may!$F23:$AJ23,"l") -> 0 | AO23: 2 | AP23: 0 | AQ23: 31 | AR23: 0 | AS23: 28000 | AT23: 1400 | AU23: 903 | AV23: 3000 | AW23: 0 | AX23: 0
B24: P015 | C24: Name 15 | D24: 2019-01-15 | E24: Manager | AL24: =COUNTIF(may!$F24:$AJ24,"p") -> 0 | AM24: =COUNTIF(may!$F24:$AJ24,"a") -> 0 | AN24: =COUNTIF(may!$F24:$AJ24,"l") -> 0 | AO24: 2 | AP24: 0 | AQ24: 31 | AR24: 0 | AS24: 29000 | AT24: 1450 | AU24: 935 | AV24: 3000 | AW24: 0 | AX24: 0

Sheet nov
C2: Deepak EduWorld Pvt Ltd | AL2: Salary Calculatrion
B6: Attandance Sheet For Month | F6: =MID(CELL("filename",B2),FIND("]",CELL("filename",B2))+1,255) -> nov | K6: =DATEVALUE("1"&F6) -> 2019-11-01 | P6: To | Q6: =EOMONTH(K6,0) -> 2019-11-30
B8: Emp Id | C8: Name | D8: Date Of Joining | E8: Post | F8: =TEXT(F9,"ddd") -> Fri | G8: =TEXT(G9,"ddd") -> Sat | H8: =TEXT(H9,"ddd") -> Sun | I8: Mon | J8: Tue | K8: Wed | L8: Thu | M8: Fri | N8: Sat | O8: Sun | P8: Mon | Q8: Tue | R8: Wed | S8: Thu | T8: Fri | U8: Sat | V8: Sun | W8: Mon | X8: Tue | Y8: Wed | Z8: Thu | AA8: Fri | AB8: Sat | AC8: Sun | AD8: Mon | AE8: Tue | AF8: Wed | AG8: Thu | AH8: Fri | AI8: Sat | AL8: Presence | AM8: Absence | AN8: Leave Taken | AO8: Allowed Leave | AP8: Leave Charges | AQ8: Total Days of month | AR8: Total Payable Days | AS8: Basic Salary | AT8: PF 5% | AU8: Per Day Amount | AV8: HRA | AW8: Total Amount | AX8: In Hand Salary
F9: =K6 -> 2019-11-01 | G9: =IF(F9<$Q$6,F9+1,"") -> 2019-11-02 | H9: 2019-11-03 | I9: 2019-11-04 | J9: 2019-11-05 | K9: 2019-11-06 | L9: 2019-11-07 | M9: 2019-11-08 | N9: 2019-11-09 | O9: 2019-11-10 | P9: 2019-11-11 | Q9: 2019-11-12 | R9: 2019-11-13 | S9: 2019-11-14 | T9: 2019-11-15 | U9: 2019-11-16 | V9: 2019-11-17 | W9: 2019-11-18 | X9: 2019-11-19 | Y9: 2019-11-20 | Z9: 2019-11-21 | AA9: 2019-11-22 | AB9: 2019-11-23 | AC9: 2019-11-24 | AD9: 2019-11-25 | AE9: 2019-11-26 | AF9: 2019-11-27 | AG9: 2019-11-28 | AH9: 2019-11-29 | AI9: 2019-11-30
B10: P001 | C10: Name 1 | D10: 2019-01-01 | E10: Manager | AL10: =COUNTIF(may!$F10:$AJ10,"p") -> 0 | AM10: =COUNTIF(may!$F10:$AJ10,"a") -> 0 | AN10: =COUNTIF(may!$F10:$AJ10,"l") -> 0 | AO10: 2 | AP10: =IF(AN10>AO10,AN10-AO10,0) -> 0 | AQ10: =DAY($Q$6) -> 30 | AR10: =IF(AL10=0,0,COUNTIF($F$8:$AJ$8,"sun")+AL10) -> 0 | AS10: 15000 | AT10: =AS10*5% -> 750 | AU10: =AS10/AQ10 -> 500 | AV10: =IF(AS10>20000,3000,2000) -> 2000 | AW10: =AU10*AR10 -> 0 | AX10: =IF(AL10=0,0,AW10+AV10-AT10) -> 0
B11: P002 | C11: Name 2 | D11: 2019-01-02 | E11: Officer | AL11: =COUNTIF(may!$F11:$AJ11,"p") -> 0 | AM11: =COUNTIF(may!$F11:$AJ11,"a") -> 0 | AN11: =COUNTIF(may!$F11:$AJ11,"l") -> 0 | AO11: 2 | AP11: =IF(AN11>AO11,AN11-AO11,0) -> 0 | AQ11: 30 | AR11: =IF(AL11=0,0,COUNTIF($F$8:$AJ$8,"sun")+AL11) -> 0 | AS11: 16000 | AT11: =AS11*5% -> 800 | AU11: =AS11/AQ11 -> 533 | AV11: =IF(AS11>20000,3000,2000) -> 2000 | AW11: =AU11*AR11 -> 0 | AX11: =IF(AL11=0,0,AW11+AV11-AT11) -> 0
B12: P003 | C12: Name 3 | D12: 2019-01-03 | E12: Clark | AL12: =COUNTIF(may!$F12:$AJ12,"p") -> 0 | AM12: =COUNTIF(may!$F12:$AJ12,"a") -> 0 | AN12: =COUNTIF(may!$F12:$AJ12,"l") -> 0 | AO12: 2 | AP12: 0 | AQ12: 30 | AR12: 0 | AS12: 17000 | AT12: 850 | AU12: 567 | AV12: 2000 | AW12: 0 | AX12: 0
B13: P004 | C13: Name 4 | D13: 2019-01-04 | E13: Manager | AL13: =COUNTIF(may!$F13:$AJ13,"p") -> 0 | AM13: =COUNTIF(may!$F13:$AJ13,"a") -> 0 | AN13: =COUNTIF(may!$F13:$AJ13,"l") -> 0 | AO13: 2 | AP13: 0 | AQ13: 30 | AR13: 0 | AS13: 18000 | AT13: 900 | AU13: 600 | AV13: 2000 | AW13: 0 | AX13: 0
B14: P005 | C14: Name 5 | D14: 2019-01-05 | E14: Officer | AL14: =COUNTIF(may!$F14:$AJ14,"p") -> 0 | AM14: =COUNTIF(may!$F14:$AJ14,"a") -> 0 | AN14: =COUNTIF(may!$F14:$AJ14,"l") -> 0 | AO14: 2 | AP14: 0 | AQ14: 30 | AR14: 0 | AS14: 19000 | AT14: 950 | AU14: 633 | AV14: 2000 | AW14: 0 | AX14: 0
B15: P006 | C15: Name 6 | D15: 2019-01-06 | E15: Clark | AL15: =COUNTIF(may!$F15:$AJ15,"p") -> 0 | AM15: =COUNTIF(may!$F15:$AJ15,"a") -> 0 | AN15: =COUNTIF(may!$F15:$AJ15,"l") -> 0 | AO15: 2 | AP15: 0 | AQ15: 30 | AR15: 0 | AS15: 20000 | AT15: 1000 | AU15: 667 | AV15: 2000 | AW15: 0 | AX15: 0
B16: P007 | C16: Name 7 | D16: 2019-01-07 | E16: Manager | AL16: =COUNTIF(may!$F16:$AJ16,"p") -> 0 | AM16: =COUNTIF(may!$F16:$AJ16,"a") -> 0 | AN16: =COUNTIF(may!$F16:$AJ16,"l") -> 0 | AO16: 2 | AP16: 0 | AQ16: 30 | AR16: 0 | AS16: 21000 | AT16: 1050 | AU16: 700 | AV16: 3000 | AW16: 0 | AX16: 0
B17: P008 | C17: Name 8 | D17: 2019-01-08 | E17: Officer | AL17: =COUNTIF(may!$F17:$AJ17,"p") -> 0 | AM17: =COUNTIF(may!$F17:$AJ17,"a") -> 0 | AN17: =COUNTIF(may!$F17:$AJ17,"l") -> 0 | AO17: 2 | AP17: 0 | AQ17: 30 | AR17: 0 | AS17: 22000 | AT17: 1100 | AU17: 733 | AV17: 3000 | AW17: 0 | AX17: 0
B18: P009 | C18: Name 9 | D18: 2019-01-09 | E18: Clark | AL18: =COUNTIF(may!$F18:$AJ18,"p") -> 0 | AM18: =COUNTIF(may!$F18:$AJ18,"a") -> 0 | AN18: =COUNTIF(may!$F18:$AJ18,"l") -> 0 | AO18: 2 | AP18: 0 | AQ18: 30 | AR18: 0 | AS18: 23000 | AT18: 1150 | AU18: 767 | AV18: 3000 | AW18: 0 | AX18: 0
B19: P010 | C19: Name 10 | D19: 2019-01-10 | E19: Manager | AL19: =COUNTIF(may!$F19:$AJ19,"p") -> 0 | AM19: =COUNTIF(may!$F19:$AJ19,"a") -> 0 | AN19: =COUNTIF(may!$F19:$AJ19,"l") -> 0 | AO19: 2 | AP19: 0 | AQ19: 30 | AR19: 0 | AS19: 24000 | AT19: 1200 | AU19: 800 | AV19: 3000 | AW19: 0 | AX19: 0
B20: P011 | C20: Name 11 | D20: 2019-01-11 | E20: Officer | AL20: =COUNTIF(may!$F20:$AJ20,"p") -> 0 | AM20: =COUNTIF(may!$F20:$AJ20,"a") -> 0 | AN20: =COUNTIF(may!$F20:$AJ20,"l") -> 0 | AO20: 2 | AP20: 0 | AQ20: 30 | AR20: 0 | AS20: 25000 | AT20: 1250 | AU20: 833 | AV20: 3000 | AW20: 0 | AX20: 0
B21: P012 | C21: Name 12 | D21: 2019-01-12 | E21: Manager | AL21: =COUNTIF(may!$F21:$AJ21,"p") -> 0 | AM21: =COUNTIF(may!$F21:$AJ21,"a") -> 0 | AN21: =COUNTIF(may!$F21:$AJ21,"l") -> 0 | AO21: 2 | AP21: 0 | AQ21: 30 | AR21: 0 | AS21: 26000 | AT21: 1300 | AU21: 867 | AV21: 3000 | AW21: 0 | AX21: 0
B22: P013 | C22: Name 13 | D22: 2019-01-13 | E22: Officer | AL22: =COUNTIF(may!$F22:$AJ22,"p") -> 0 | AM22: =COUNTIF(may!$F22:$AJ22,"a") -> 0 | AN22: =COUNTIF(may!$F22:$AJ22,"l") -> 0 | AO22: 2 | AP22: 0 | AQ22: 30 | AR22: 0 | AS22: 27000 | AT22: 1350 | AU22: 900 | AV22: 3000 | AW22: 0 | AX22: 0
B23: P014 | C23: Name 14 | D23: 2019-01-14 | E23: Clark | AL23: =COUNTIF(may!$F23:$AJ23,"p") -> 0 | AM23: =COUNTIF(may!$F23:$AJ23,"a") -> 0 | AN23: =COUNTIF(may!$F23:$AJ23,"l") -> 0 | AO23: 2 | AP23: 0 | AQ23: 30 | AR23: 0 | AS23: 28000 | AT23: 1400 | AU23: 933 | AV23: 3000 | AW23: 0 | AX23: 0
B24: P015 | C24: Name 15 | D24: 2019-01-15 | E24: Manager | AL24: =COUNTIF(may!$F24:$AJ24,"p") -> 0 | AM24: =COUNTIF(may!$F24:$AJ24,"a") -> 0 | AN24: =COUNTIF(may!$F24:$AJ24,"l") -> 0 | AO24: 2 | AP24: 0 | AQ24: 30 | AR24: 0 | AS24: 29000 | AT24: 1450 | AU24: 967 | AV24: 3000 | AW24: 0 | AX24: 0

Sheet dec
C2: Deepak EduWorld Pvt Ltd | AL2: Salary Calculatrion
B6: Attandance Sheet For Month | F6: =MID(CELL("filename",B2),FIND("]",CELL("filename",B2))+1,255) -> dec | K6: =DATEVALUE("1"&F6) -> 2019-12-01 | P6: To | Q6: =EOMONTH(K6,0) -> 2019-12-31
B8: Emp Id | C8: Name | D8: Date Of Joining | E8: Post | F8: =TEXT(F9,"ddd") -> Sun | G8: =TEXT(G9,"ddd") -> Mon | H8: =TEXT(H9,"ddd") -> Tue | I8: Wed | J8: Thu | K8: Fri | L8: Sat | M8: Sun | N8: Mon | O8: Tue | P8: Wed | Q8: Thu | R8: Fri | S8: Sat | T8: Sun | U8: Mon | V8: Tue | W8: Wed | X8: Thu | Y8: Fri | Z8: Sat | AA8: Sun | AB8: Mon | AC8: Tue | AD8: Wed | AE8: Thu | AF8: Fri | AG8: Sat | AH8: Sun | AI8: Mon | AJ8: Tue | AL8: Presence | AM8: Absence | AN8: Leave Taken | AO8: Allowed Leave | AP8: Leave Charges | AQ8: Total Days of month | AR8: Total Payable Days | AS8: Basic Salary | AT8: PF 5% | AU8: Per Day Amount | AV8: HRA | AW8: Total Amount | AX8: In Hand Salary
F9: =K6 -> 2019-12-01 | G9: =IF(F9<$Q$6,F9+1,"") -> 2019-12-02 | H9: 2019-12-03 | I9: 2019-12-04 | J9: 2019-12-05 | K9: 2019-12-06 | L9: 2019-12-07 | M9: 2019-12-08 | N9: 2019-12-09 | O9: 2019-12-10 | P9: 2019-12-11 | Q9: 2019-12-12 | R9: 2019-12-13 | S9: 2019-12-14 | T9: 2019-12-15 | U9: 2019-12-16 | V9: 2019-12-17 | W9: 2019-12-18 | X9: 2019-12-19 | Y9: 2019-12-20 | Z9: 2019-12-21 | AA9: 2019-12-22 | AB9: 2019-12-23 | AC9: 2019-12-24 | AD9: 2019-12-25 | AE9: 2019-12-26 | AF9: 2019-12-27 | AG9: 2019-12-28 | AH9: 2019-12-29 | AI9: 2019-12-30 | AJ9: 2019-12-31
B10: P001 | C10: Name 1 | D10: 2019-01-01 | E10: Manager | AL10: =COUNTIF(may!$F10:$AJ10,"p") -> 0 | AM10: =COUNTIF(may!$F10:$AJ10,"a") -> 0 | AN10: =COUNTIF(may!$F10:$AJ10,"l") -> 0 | AO10: 2 | AP10: =IF(AN10>AO10,AN10-AO10,0) -> 0 | AQ10: =DAY($Q$6) -> 31 | AR10: =IF(AL10=0,0,COUNTIF($F$8:$AJ$8,"sun")+AL10) -> 0 | AS10: 15000 | AT10: =AS10*5% -> 750 | AU10: =AS10/AQ10 -> 484 | AV10: =IF(AS10>20000,3000,2000) -> 2000 | AW10: =AU10*AR10 -> 0 | AX10: =IF(AL10=0,0,AW10+AV10-AT10) -> 0
B11: P002 | C11: Name 2 | D11: 2019-01-02 | E11: Officer | AL11: =COUNTIF(may!$F11:$AJ11,"p") -> 0 | AM11: =COUNTIF(may!$F11:$AJ11,"a") -> 0 | AN11: =COUNTIF(may!$F11:$AJ11,"l") -> 0 | AO11: 2 | AP11: =IF(AN11>AO11,AN11-AO11,0) -> 0 | AQ11: 31 | AR11: =IF(AL11=0,0,COUNTIF($F$8:$AJ$8,"sun")+AL11) -> 0 | AS11: 16000 | AT11: =AS11*5% -> 800 | AU11: =AS11/AQ11 -> 516 | AV11: =IF(AS11>20000,3000,2000) -> 2000 | AW11: =AU11*AR11 -> 0 | AX11: =IF(AL11=0,0,AW11+AV11-AT11) -> 0
B12: P003 | C12: Name 3 | D12: 2019-01-03 | E12: Clark | AL12: =COUNTIF(may!$F12:$AJ12,"p") -> 0 | AM12: =COUNTIF(may!$F12:$AJ12,"a") -> 0 | AN12: =COUNTIF(may!$F12:$AJ12,"l") -> 0 | AO12: 2 | AP12: 0 | AQ12: 31 | AR12: 0 | AS12: 17000 | AT12: 850 | AU12: 548 | AV12: 2000 | AW12: 0 | AX12: 0
B13: P004 | C13: Name 4 | D13: 2019-01-04 | E13: Manager | AL13: =COUNTIF(may!$F13:$AJ13,"p") -> 0 | AM13: =COUNTIF(may!$F13:$AJ13,"a") -> 0 | AN13: =COUNTIF(may!$F13:$AJ13,"l") -> 0 | AO13: 2 | AP13: 0 | AQ13: 31 | AR13: 0 | AS13: 18000 | AT13: 900 | AU13: 581 | AV13: 2000 | AW13: 0 | AX13: 0
B14: P005 | C14: Name 5 | D14: 2019-01-05 | E14: Officer | AL14: =COUNTIF(may!$F14:$AJ14,"p") -> 0 | AM14: =COUNTIF(may!$F14:$AJ14,"a") -> 0 | AN14: =COUNTIF(may!$F14:$AJ14,"l") -> 0 | AO14: 2 | AP14: 0 | AQ14: 31 | AR14: 0 | AS14: 19000 | AT14: 950 | AU14: 613 | AV14: 2000 | AW14: 0 | AX14: 0
B15: P006 | C15: Name 6 | D15: 2019-01-06 | E15: Clark | AL15: =COUNTIF(may!$F15:$AJ15,"p") -> 0 | AM15: =COUNTIF(may!$F15:$AJ15,"a") -> 0 | AN15: =COUNTIF(may!$F15:$AJ15,"l") -> 0 | AO15: 2 | AP15: 0 | AQ15: 31 | AR15: 0 | AS15: 20000 | AT15: 1000 | AU15: 645 | AV15: 2000 | AW15: 0 | AX15: 0
B16: P007 | C16: Name 7 | D16: 2019-01-07 | E16: Manager | AL16: =COUNTIF(may!$F16:$AJ16,"p") -> 0 | AM16: =COUNTIF(may!$F16:$AJ16,"a") -> 0 | AN16: =COUNTIF(may!$F16:$AJ16,"l") -> 0 | AO16: 2 | AP16: 0 | AQ16: 31 | AR16: 0 | AS16: 21000 | AT16: 1050 | AU16: 677 | AV16: 3000 | AW16: 0 | AX16: 0
B17: P008 | C17: Name 8 | D17: 2019-01-08 | E17: Officer | AL17: =COUNTIF(may!$F17:$AJ17,"p") -> 0 | AM17: =COUNTIF(may!$F17:$AJ17,"a") -> 0 | AN17: =COUNTIF(may!$F17:$AJ17,"l") -> 0 | AO17: 2 | AP17: 0 | AQ17: 31 | AR17: 0 | AS17: 22000 | AT17: 1100 | AU17: 710 | AV17: 3000 | AW17: 0 | AX17: 0
B18: P009 | C18: Name 9 | D18: 2019-01-09 | E18: Clark | AL18: =COUNTIF(may!$F18:$AJ18,"p") -> 0 | AM18: =COUNTIF(may!$F18:$AJ18,"a") -> 0 | AN18: =COUNTIF(may!$F18:$AJ18,"l") -> 0 | AO18: 2 | AP18: 0 | AQ18: 31 | AR18: 0 | AS18: 23000 | AT18: 1150 | AU18: 742 | AV18: 3000 | AW18: 0 | AX18: 0
B19: P010 | C19: Name 10 | D19: 2019-01-10 | E19: Manager | AL19: =COUNTIF(may!$F19:$AJ19,"p") -> 0 | AM19: =COUNTIF(may!$F19:$AJ19,"a") -> 0 | AN19: =COUNTIF(may!$F19:$AJ19,"l") -> 0 | AO19: 2 | AP19: 0 | AQ19: 31 | AR19: 0 | AS19: 24000 | AT19: 1200 | AU19: 774 | AV19: 3000 | AW19: 0 | AX19: 0
B20: P011 | C20: Name 11 | D20: 2019-01-11 | E20: Officer | AL20: =COUNTIF(may!$F20:$AJ20,"p") -> 0 | AM20: =COUNTIF(may!$F20:$AJ20,"a") -> 0 | AN20: =COUNTIF(may!$F20:$AJ20,"l") -> 0 | AO20: 2 | AP20: 0 | AQ20: 31 | AR20: 0 | AS20: 25000 | AT20: 1250 | AU20: 806 | AV20: 3000 | AW20: 0 | AX20: 0
B21: P012 | C21: Name 12 | D21: 2019-01-12 | E21: Manager | AL21: =COUNTIF(may!$F21:$AJ21,"p") -> 0 | AM21: =COUNTIF(may!$F21:$AJ21,"a") -> 0 | AN21: =COUNTIF(may!$F21:$AJ21,"l") -> 0 | AO21: 2 | AP21: 0 | AQ21: 31 | AR21: 0 | AS21: 26000 | AT21: 1300 | AU21: 839 | AV21: 3000 | AW21: 0 | AX21: 0
B22: P013 | C22: Name 13 | D22: 2019-01-13 | E22: Officer | AL22: =COUNTIF(may!$F22:$AJ22,"p") -> 0 | AM22: =COUNTIF(may!$F22:$AJ22,"a") -> 0 | AN22: =COUNTIF(may!$F22:$AJ22,"l") -> 0 | AO22: 2 | AP22: 0 | AQ22: 31 | AR22: 0 | AS22: 27000 | AT22: 1350 | AU22: 871 | AV22: 3000 | AW22: 0 | AX22: 0
B23: P014 | C23: Name 14 | D23: 2019-01-14 | E23: Clark | AL23: =COUNTIF(may!$F23:$AJ23,"p") -> 0 | AM23: =COUNTIF(may!$F23:$AJ23,"a") -> 0 | AN23: =COUNTIF(may!$F23:$AJ23,"l") -> 0 | AO23: 2 | AP23: 0 | AQ23: 31 | AR23: 0 | AS23: 28000 | AT23: 1400 | AU23: 903 | AV23: 3000 | AW23: 0 | AX23: 0
B24: P015 | C24: Name 15 | D24: 2019-01-15 | E24: Manager | AL24: =COUNTIF(may!$F24:$AJ24,"p") -> 0 | AM24: =COUNTIF(may!$F24:$AJ24,"a") -> 0 | AN24: =COUNTIF(may!$F24:$AJ24,"l") -> 0 | AO24: 2 | AP24: 0 | AQ24: 31 | AR24: 0 | AS24: 29000 | AT24: 1450 | AU24: 935 | AV24: 3000 | AW24: 0 | AX24: 0
